{"text_format":"3","workbook":"xlsx","n_sheets":13,"sheets":["0 Orientações Gerais","1 Identificação e Parâmetros","2 DadosFinanServRSU","3 Dados-Complementares","4 Dados Cadastrais-USUÁRIOS","5.1 CalcCustoVBC-Completo","5.2 CalcCustoVBC-Simplificado","6a Tabelas-Taxas_Tarifas","6b TabelasCalc-Tax_Tarif_ANA","7 Glossário","8 OrientaçõesTabelasAuxiliares","9 Dados_Exerc_Ferramenta","Planilha1"],"not_rendered":{"images":1,"defined_names":12,"comments":9},"read":"whole","date_system":"1900"}

{"sheet":"0 Orientações Gerais","index":0,"n_rows":13,"n_cols":1,"rows_kept":13,"merged":[[0,0,0,14],[1,0,1,14],[2,0,2,14],[3,0,3,14],[4,0,4,14],[5,0,5,14],[6,0,6,14],[7,0,7,14],[9,0,9,14]]}
[]
[]
["Apresentação e Orientações Gerais sobre a Ferramenta"]
["Esta ferramenta compõe uma modelagem simplificada da metodologia de cálculo dos custos do serviço de manejo de resíduos sólidos urbanos e do valor básico de cálculo (VBC) das taxas ou tarifas devidas pela disposição e prestação desse serviço, conforme a regulação municipal e as diretrizes da Lei Federal nº 11.445/2007.\n\nNão devem integrar os custos dos serviços de manejo de resíduos sólidos urbanos as despesas e os gastos com atividades específicas e exclusivas do Serviço de Limpeza Urbana, tais como varrição de vias e logradouros públicos, podas de árvores e manutenção de praças e jardins, limpeza de bocas de lobo etc."]
["A ferramenta pode ser aplicada para qualquer forma de prestação do serviço pelo Município, porém é recomendada principalmente para os casos de prestação direta por órgão da Administração Direta (Secretaria, Departamento, Divisão, Setor etc. da Prefeitura) ou por entidade da Administração Indireta (Autarquia ou Empresa Municipal)."]
["Esta ferramenta pode ser utilizada de duas formas:\n\n1) Aplicação completa, utilizando todas as planilhas ou abas, identificadas abaixo com os números de 1 a 6, exceto a aba 5.2. Essa aplicação é recomendada quando houver informações financeiras e contábeis detalhadas e a prestação envolver diversas atividades, tais como coleta convencional, coleta seletiva, triagem, compostagem, transbordo, operação de aterro sanitário etc., ou quando o serviço for prestado por um único órgão ou entidade; ou\n\n2) Aplicação simplificada, utilizando somente as planilhas (abas) números 1, 5.2 e 6 abaixo. Essa aplicação é recomendada quando não houver informações detalhadas das despesas dos serviços ou quando a prestação envolver somente as atividades de coleta de resíduos domiciliares (coleta de lixo) e operação de aterro sanitário.\n\nQualquer que seja a forma escolhida, os campos da planilha \"1 Identificação e Parâmetros\" devem ser OBRIGATORIAMENTE preenchidos."]
["Para facilitar sua aplicação, esta ferramenta tem duas planilhas (abas) auxiliares: \n\na) Planilha 7, contendo um glossário explicativo das expressões e dos conceitos utilizados;\nb) Planilha 8, contendo orientações e tabelas auxiliares para levantamento de informações para o cálculo ou a estimação das despesas mais importantes para a composição do custo dos serviços, inclusive sobre o ativo imobilizado e cálculo da depreciação. Esta planilha também mostra uma tabela de parâmetros extraídos do Sistema Nacional de Informações sobre Saneamento (SNIS), mantido pela Secretaria Nacional de Saneamento do Ministério do Desenvolvimento Regional (SNSA/MDR).\n\nO glossário das expressões e as tabelas auxiliares podem ser acessados por meio de link marcado nos campos das planilhas em que estes elementos são utilizados."]
["Acesse o Manual de Utilização da Planilha de Cálculo de Taxas ou Tarifas dos Serviços de Manejo de Resíduos Sólidos Urbanos disponível para download no site: https://www.gov.br/mdr/pt-br/assuntos/saneamento/protegeer"]
["Elaborado por: Ministério do Desenvolvimento Regional e Fundação Nacional da Saúde"]
["Por meio do: Ministério do Meio Ambiente, Proteção da Natureza e Segurança Nuclear da Alemanha, Deutsche Gesellschaft für Internationale Zusammenarbeit (GIZ) GmbH e Projeto de Cooperação para Proteção do Clima na Gestão de Resíduos Sólidos Urbanos - ProteGEEr"]
["Desenvolvedores (GOPA Infra-Adelphi): João Peixoto "]
["Equipe Técnica ProteGEEr (GOPA Infra-Adelphi): Jan Janssen, Guilherme Gonçalves e Rebeca Borges"]
["Contato: sanearbrasil@mdr.gov.br"]

{"sheet":"1 Identificação e Parâmetros","index":1,"n_rows":36,"n_cols":17,"rows_kept":36,"merged":[[0,0,0,14],[1,0,1,14],[2,0,2,9],[2,13,2,14],[3,3,3,6],[3,11,3,14],[5,2,5,4],[5,5,5,10],[5,12,5,13],[6,2,6,4],[6,5,6,10],[6,12,6,13],[7,2,7,4],[7,5,7,10],[7,15,8,17],[8,2,8,9],[9,2,9,9],[10,2,10,9],[11,2,11,9],[12,2,12,8],[13,2,13,7],[13,9,13,10],[14,2,14,9],[15,7,15,10],[18,2,18,7],[18,8,18,9]]}
[]
[]
[{"$nulls":10},"Revisão",0,"Data"]
["           Elaborada por",null,null,"João B Peixoto",{"$nulls":3},"Data","2021-11-17",null,"Revisada por"]
[]
[null,1,"Nome do Município e do Estado (UF)",null,null,"Município de Serra do Juda - MG",{"$nulls":6},"Senha Provisória "]
[null,2,"Órgão ou entidade gestora do serviço",null,null,"Secretaria de Serviços Urbanos",{"$nulls":6},12345]
[null,3,"Regime e forma de prestação",null,null,"Prestação direta por órgão da Admnistração Direta",{"$nulls":9},"ATENÇÃO: Preencher/alterar somente as células em verde."]
[null,4,"Ano-base de cálculo dos custos (ano anterior ao de vigência da taxa ou tarifa)",{"$nulls":7},2021]
[null,5,"Parcela (%) da despesa de depreciação/exaustão dos ativos apropriada no custo do serviço",{"$nulls":7},{"$f":"'9 Dados_Exerc_Ferramenta'!G29","v":{"v":1,"d":"100.0%"}}]
[null,6,"Parcela (%) das despesas indiretas administrativas e de apoio apropriada no custo do serviço",{"$nulls":7},{"$f":"'9 Dados_Exerc_Ferramenta'!G28","v":{"v":0.1,"d":"10.0%"}},{"$nulls":4},"Legenda de cores das células:"]
[null,7,"Parcela (%) do custo do serviço a ser cobrado dos usuários admitido pela política de cobrança",{"$nulls":7},{"$f":"'9 Dados_Exerc_Ferramenta'!G26","v":{"v":1,"d":"100.0%"}}]
[null,8,"Índice de reajuste para cálculo/estimativa do custo básico do ano atual ",{"$nulls":6},"INPC",{"$f":"((1+'9 Dados_Exerc_Ferramenta'!C25)*(1+'9 Dados_Exerc_Ferramenta'!D25))^(1/2)-1","v":{"v":0.06925265957116045,"d":"6.93%"}},{"$nulls":5}," Verde - Informação a ser fornecida pelo usuário"]
[null,9,"Base de aplicação do índice de reajuste",{"$nulls":5},{"$f":"IF(J14=0,\" \",IF(J14=\"1 - Reajuste de todas parcelas\",1,2))","v":1},"1 - Reajuste de todas parcelas",{"$nulls":6}," Vermelho - Erro de cálculo nesta célula"]
[null,10,"Taxa de remuneração dos investimentos em operação (capital investido)",{"$nulls":7},{"$f":"'9 Dados_Exerc_Ferramenta'!D26+'9 Dados_Exerc_Ferramenta'!H33","v":{"v":0.0645,"d":"6.45%"}},{"$nulls":5}," Amarelo - Resultado de cálculo"]
[null,11,"Fator de rateio da taxa ou tarifa ",{"$nulls":4},"2. Quantidade de domicílios com coleta de RSU",{"$nulls":8}," Branco - Outros resultados de cálculo"]
[null,12,"Previsão de aumento da quantidade de economias/domicílios com abastecimento de água (%)",{"$nulls":7},{"$f":"'9 Dados_Exerc_Ferramenta'!D7","v":{"v":0.02,"d":"2.0%"}},{"$nulls":5},"Azul - Células de totalização, resultados de cálculo a medida que você alimenta os dados"]
[null,13,"Previsão de aumento da quantidade de domicílios com coleta de RSU (%)",{"$nulls":7},{"$f":"'9 Dados_Exerc_Ferramenta'!D7","v":{"v":0.02,"d":"2.0%"}}]
["            SUMÁRIO (Clique no número da planilha ou da tabela para acessar)",14,"Versão da ferramenta utilizada",{"$nulls":5},"Versão Completa",null,{"$f":"IF(I19=\"Versão Completa\",\"Ir para Aba 2\",\" \")","v":"Ir para Aba 2"}]
["               Planilhas e tabelas",{"$nulls":9},{"$f":"IF(I19=\"Versão Simplificada\",\"Ir para Aba 5.2\",\" \")","v":" "}]
[2]
[3]
[4]
["5.1","Dados financeiros-contábeis dos serviços de manejo de resíduos"]
["5.2","Informações complementares — ativos imobilizados e dados operacionais dos serviços"]
[6,"Dados sobre categorias e domicílios/usuários dos serviços de manejo de resíduos e de abastecimento de água"]
["6.1","Versão completa — Cálculo do custo dos serviços e do Valor Básico de Cálculo (VBC) da Taxa/Tarifa de Manejo de Resíduos (TMRS)"]
["6.2","Versão simplificada — Cálculo do custo dos serviços e do Valor Básico de Cálculo (VBC) da Taxa/Tarifa de Manejo de Resíduos (TMRS)"]
["6.3","Tabelas referenciais de taxas ou tarifas de serviços de manejo de resíduos sólidos"]
["6.4",null,"Tabela 1 — Estrutura referencial de cálculo da TMRS com base na categoria dos imóveis e na frequência da coleta (Opção 1)"]
[6.5,null,"Tabela 2 — Estrutura referencial de cálculo da TMRS com base na categoria dos imóveis e na área construída (Opção 2)"]
[7,null,"Tabela 3 — Estrutura referencial de cálculo da TMRS com base na categoria dos imóveis, na frequência da coleta e no consumo de água (Opção 3)"]
[8,null,"Tabela 4 —  Estrutura referencial de cálculo da TMRS com base na categoria dos imóveis e no volume de água consumida (Opção 4)"]
[null,null,"Tabela 5 — Hipóteses de cobrança de tarifa pela prestação efetiva dos serviços de coleta e destinação final de resíduos domiciliares"]
[null,"Glossário de termos, expressões e conceitos técnicos utilizados nesta ferramenta"]
[null,"Orientações, parâmetros e modelos de tabelas auxiliares para levantamento e controle gerencial dos custos dos serviços"]

{"sheet":"2 DadosFinanServRSU","index":2,"n_rows":75,"n_cols":8,"rows_kept":75,"merged":[[1,1,1,3],[1,5,1,7],[2,1,2,3],[2,5,2,7],[3,1,5,1],[3,2,3,3],[3,5,5,5],[3,6,3,7],[31,5,31,7],[32,5,32,7],[33,5,33,7],[76,1,76,3],[77,1,77,3],[78,1,78,3],[79,1,79,3]]}
[null,"RETORNAR AO SUMÁRIO"]
[null,"Tabela 1 — Estrutura sintética das despesas com os serviços de manejo de resíduos ",{"$nulls":3},"Tabela 2 — Estrutura sintética da receita com os serviços de manejo de resíduos"]
[null,"Planilha para coleta de informações das despesas no sistema de contabilidade (balancetes analíticos das despesas) e/ou em relatórios gerenciais de controle das despesas com os serviços.\n\nEsta planilha é recomendada quando houver outras atividades além da coleta e operação de aterro, quando o serviço for prestado por um único órgão ou autarquia municipal, ou quando existirem informações detalhadas por tipo/natureza da despesa.",{"$nulls":3},"Tabela para coleta de informações das receitas dos serviços no sistema de contabilidade (balancetes analíticos das receitas) e/ou em relatórios gerenciais de controle das receitas lançadas e arrecadadas relativas aos serviços.\n\n+F7:F14"]
[null,"ELEMENTOS DAS DESPESAS (principais grupos/subgrupos de contas)","Valores",null,null,"ELEMENTOS DAS RECEITAS","Valores"]
[null,null,"Ano-Base","Ano Atual",null,null,"Ano-Base","Ano Atual"]
[null,null,{"$f":"'1 Identificação e Parâmetros'!K9","v":2021},{"$f":"C6+1","v":2022},null,null,{"$f":"C6","v":2021},{"$f":"G6+1","v":2022}]
[null,"1 Despesas com pessoal (proventos, encargos previdenciários e benefícios)",{"$nulls":3},"1. Receitas de taxas e tarifas — valores faturados/lançados no ano(1) ",0,{"$f":"G7/'4 Dados Cadastrais-USUÁRIOS'!C11*'4 Dados Cadastrais-USUÁRIOS'!D7*(1+'1 Identificação e Parâmetros'!K13)","v":0}]
[null,"1.1 Pessoal próprio (inclui cedido de outros órgãos) — Subtotal",{"$f":"SUM(C9:C13)","v":{"v":539184.1,"d":"539,184.10"}},{"$f":"SUM(D9:D13)","v":{"v":587307.7149234825,"d":"587,307.71"}},null,"2. Receitas de multas e encargos por inadimplência — valores lançados/provisionados no ano",0,{"$f":"IF(G8=0,0,G8/G7*H7)","v":0}]
[null,"1.1.1 Administração central",{"v":0,"d":"0.00"},{"$f":"IF('1 Identificação e Parâmetros'!$I$14=1,'2 DadosFinanServRSU'!C9*(1+'1 Identificação e Parâmetros'!$K$13),0)","v":{"v":0,"d":"0.00"}},null,"Sub-total — Receitas lançadas/provisionadas no ano (a)",{"$f":"SUM(G7:G8)","v":0},{"$f":"SUM(H7:H8)","v":0}]
[null,"1.1.2 Central de operação da coleta (convencional e seletiva)",{"$f":"'9 Dados_Exerc_Ferramenta'!$H$3","v":{"v":296132.2,"d":"296,132.20"}},{"$f":"IF('1 Identificação e Parâmetros'!$I$14=1,'2 DadosFinanServRSU'!C10*(1+'1 Identificação e Parâmetros'!$K$13+'9 Dados_Exerc_Ferramenta'!K3),0)","v":{"v":322562.7864346588,"d":"322,562.79"}},null,"3. Valores arrecadados no ano - receita corrente + dívida ativa de taxas e tarifas (2) ",0,{"$f":"IF(G10=0,0,G10/G7*H7)","v":0}]
[null,"1.1.3 Unidade de triagem, compostagem e processamento (ecopontos)",{"v":0,"d":"0.00"},{"$f":"IF('1 Identificação e Parâmetros'!$I$14=1,'2 DadosFinanServRSU'!C11*(1+'1 Identificação e Parâmetros'!$K$13),0)","v":{"v":0,"d":"0.00"}},null,"4. Valores arrecadados no ano relativos a multas e encargos (dívidas do ano e anteriores)",0,{"$f":"IF(G11=0,0,G11/G10*H10)","v":0}]
[null,"1.1.4 Central de transbordo/triagem",{"v":0,"d":"0.00"},{"$f":"IF('1 Identificação e Parâmetros'!$I$14=1,'2 DadosFinanServRSU'!C12*(1+'1 Identificação e Parâmetros'!$K$13),0)","v":{"v":0,"d":"0.00"}},null,"5. Isenções e subsídios legais concedidos",0,{"$f":"IF(G12=0,0,G12/G7*H7)","v":0}]
[null,"1.1.5 Central de tratamento ou aterro sanitário",{"$f":"'9 Dados_Exerc_Ferramenta'!$H$15","v":{"v":243051.9,"d":"243,051.90"}},{"$f":"IF('1 Identificação e Parâmetros'!$I$14=1,'2 DadosFinanServRSU'!C13*(1+'1 Identificação e Parâmetros'!$K$13+'9 Dados_Exerc_Ferramenta'!K15),0)","v":{"v":264744.9284888237,"d":"264,744.93"}},null,"Sub-total — Receita arrecadada + isenções e subsídios concedidos no ano (b)",{"$f":"SUM(G10:G12)","v":0},{"$f":"SUM(H10:H12)","v":0}]
[null,"1.2 Pessoal contratado (mão de obra terceirizada) — Subtotal",{"$f":"SUM(C15:C19)","v":{"v":0,"d":"0.00"}},{"$f":"SUM(D15:D19)","v":{"v":0,"d":"0.00"}},null,"Receitas acessórias arrecadadas no ano - receita corrente + dívida ativa (2) "]
[null,"1.2.1 Administração central",{"v":0,"d":"0.00"},{"$f":"IF('1 Identificação e Parâmetros'!$I$14=1,'2 DadosFinanServRSU'!C15*(1+'1 Identificação e Parâmetros'!$K$13),0)","v":{"v":0,"d":"0.00"}},null,"6. Recebimento de RDO de grandes geradores no aterro ou central de tratamento",0,{"$f":"G15*(1+'1 Identificação e Parâmetros'!$K$13)","v":0}]
[null,"1.2.2 Central de operação da coleta (convencional e seletiva)",{"v":0,"d":"0.00"},{"$f":"IF('1 Identificação e Parâmetros'!$I$14=1,'2 DadosFinanServRSU'!C16*(1+'1 Identificação e Parâmetros'!$K$13),0)","v":{"v":0,"d":"0.00"}},null,"7. Recebimento de RCC no aterro ou central de tratamento",0,{"$f":"G16*(1+'1 Identificação e Parâmetros'!$K$13)","v":0}]
[null,"1.2.3 Unidade de triagem, compostagem e processamento (ecopontos)",{"v":0,"d":"0.00"},{"$f":"IF('1 Identificação e Parâmetros'!$I$14=1,'2 DadosFinanServRSU'!C17*(1+'1 Identificação e Parâmetros'!$K$13),0)","v":{"v":0,"d":"0.00"}},null,"8. Recebimento de resíduos volumosos no aterro ou central de tratamento",0,{"$f":"G17*(1+'1 Identificação e Parâmetros'!$K$13)","v":0}]
[null,"1.2.4 Central de transbordo/triagem",{"v":0,"d":"0.00"},{"$f":"IF('1 Identificação e Parâmetros'!$I$14=1,'2 DadosFinanServRSU'!C18*(1+'1 Identificação e Parâmetros'!$K$13),0)","v":{"v":0,"d":"0.00"}},null,"9. Recebimento e tratamento de RSS no aterro ou central de tratamento",0,{"$f":"G18*(1+'1 Identificação e Parâmetros'!$K$13)","v":0}]
[null,"1.2.5 Central de tratamento ou aterro sanitário",{"v":0,"d":"0.00"},{"$f":"IF('1 Identificação e Parâmetros'!$I$14=1,'2 DadosFinanServRSU'!C19*(1+'1 Identificação e Parâmetros'!$K$13),0)","v":{"v":0,"d":"0.00"}},null,"10. Venda de composto orgânico e materiais recicláveis",0,{"$f":"G19*(1+'1 Identificação e Parâmetros'!$K$13)","v":0}]
[null,"2 Serviços de terceiros (não inclui pessoal/mão de obra contratada ) — Subtotal",{"$f":"SUM(C21:C27)","v":{"v":52725,"d":"52,725.00"}},{"$f":"SUM(D21:D27)","v":{"v":56376.34647588943,"d":"56,376.35"}},null,"Sub-total — Receitas acessórias arrecadadas no ano (c)",{"$f":"SUM(G15:G19)","v":0},{"$f":"SUM(H15:H19)","v":0}]
[null,"2.1 Serviços administrativos, limpeza e conservação predial",{"v":0,"d":"0.00"},{"$f":"IF('1 Identificação e Parâmetros'!$I$14=1,'2 DadosFinanServRSU'!C21*(1+'1 Identificação e Parâmetros'!$K$13),0)","v":{"v":0,"d":"0.00"}},null,"11. Receitas de aplicações financeiras ",0,{"$f":"G21*(1+'1 Identificação e Parâmetros'!$K$13)","v":0}]
[null,"2.2 Serviços de coleta domiciliar convencional",{"v":52725,"d":"52,725.00"},{"$f":"IF('1 Identificação e Parâmetros'!$I$14=1,'2 DadosFinanServRSU'!C22*(1+'1 Identificação e Parâmetros'!$K$13),0)","v":{"v":56376.34647588943,"d":"56,376.35"}},null,"12. Receitas extraordinárias (indenizações recebidas) ",0,{"$f":"G22*(1+'1 Identificação e Parâmetros'!$K$13)","v":0}]
[null,"2.3 Serviços de coleta seletiva",{"v":0,"d":"0.00"},{"$f":"IF('1 Identificação e Parâmetros'!$I$14=1,'2 DadosFinanServRSU'!C23*(1+'1 Identificação e Parâmetros'!$K$13),0)","v":{"v":0,"d":"0.00"}},null,"13. Alienação/venda de bens patrimoniais",0,{"$f":"G23*(1+'1 Identificação e Parâmetros'!$K$13)","v":0}]
[null,"2.4 Serviços de operação de unidade de triagem e compostagem e ecopontos",{"v":0,"d":"0.00"},{"$f":"IF('1 Identificação e Parâmetros'!$I$14=1,'2 DadosFinanServRSU'!C24*(1+'1 Identificação e Parâmetros'!$K$13),0)","v":{"v":0,"d":"0.00"}},null,"14. Outras receitas dos serviços (especificar)",0,{"$f":"G24*(1+'1 Identificação e Parâmetros'!$K$13)","v":0}]
[null,"2.5 Serviços de operação de unidade de transbordo e transporte",{"v":0,"d":"0.00"},{"$f":"IF('1 Identificação e Parâmetros'!$I$14=1,'2 DadosFinanServRSU'!C25*(1+'1 Identificação e Parâmetros'!$K$13),0)","v":{"v":0,"d":"0.00"}},null,"Sub-total — Outras receitas no ano (d)",{"$f":"SUM(G21:G24)","v":0},{"$f":"SUM(H21:H24)","v":0}]
[null,"2.6 Serviços de operação de central de tratamento ou aterro sanitário",{"v":0,"d":"0.00"},{"$f":"IF('1 Identificação e Parâmetros'!$I$14=1,'2 DadosFinanServRSU'!C26*(1+'1 Identificação e Parâmetros'!$K$13),0)","v":{"v":0,"d":"0.00"}},null,"15. Repasses orçamentários do Tesouro Municipal (e)",0,0]
[null,"2.7 Disposição de resíduos em unidades de transbordo ou central de tratamento de terceiros",{"v":0,"d":"0.00"},{"$f":"IF('1 Identificação e Parâmetros'!$I$14=1,'2 DadosFinanServRSU'!C27*(1+'1 Identificação e Parâmetros'!$K$13),0)","v":{"v":0,"d":"0.00"}},null,"16. Empréstimos realizados — desembolsos recebidos no ano (f)",0,0]
[null,"3 Aluguel de imóveis — Subtotal",{"$f":"SUM(C29:C32)","v":{"v":0,"d":"0.00"}},{"$f":"SUM(D29:D32)","v":{"v":0,"d":"0.00"}},null,"17. Subvenções recebidas (repasses e doações de entes públicos e privados)(3) (g)",0,0]
[null,"3.1 Administração central",{"v":0,"d":"0.00"},{"$f":"IF('1 Identificação e Parâmetros'!$I$14=1,'2 DadosFinanServRSU'!C29*(1+'1 Identificação e Parâmetros'!$K$13),0)","v":{"v":0,"d":"0.00"}},null,"Total - Receitas correntes e de capital (b+c+d+e+f+g)",{"$f":"G13+G20+G25+G26+G27+G28","v":0},{"$f":"H13+H20+H25+H26+H27+H28","v":0}]
[null,"3.2 Central de operação da coleta (convencional e seletiva)",{"v":0,"d":"0.00"},{"$f":"IF('1 Identificação e Parâmetros'!$I$14=1,'2 DadosFinanServRSU'!C30*(1+'1 Identificação e Parâmetros'!$K$13),0)","v":{"v":0,"d":"0.00"}},null,"Fontes: Relatórios contábeis e gerenciais  do prestador"]
[null,"3.3 Galpão/área de triagem, compostagem e processamento (ecopontos)",{"v":0,"d":"0.00"},{"$f":"IF('1 Identificação e Parâmetros'!$I$14=1,'2 DadosFinanServRSU'!C31*(1+'1 Identificação e Parâmetros'!$K$13),0)","v":{"v":0,"d":"0.00"}},null,"NOTAS"]
[null,"3.4 Central de transbordo/triagem",{"v":0,"d":"0.00"},{"$f":"IF('1 Identificação e Parâmetros'!$I$14=1,'2 DadosFinanServRSU'!C32*(1+'1 Identificação e Parâmetros'!$K$13),0)","v":{"v":0,"d":"0.00"}},null,"1. Considerar somente receitas diretas dos serviços (taxas ou tarifas) — Não incluir receitas de serviços acessórios "]
[null,"4 Aluguel de veículos, máquinas e equipamentos — Subtotal",{"$f":"SUM(C34:C39)","v":{"v":0,"d":"0.00"}},{"$f":"SUM(D34:D39)","v":{"v":0,"d":"0.00"}},null,"2. Não incluir arrecadação de multas e de encargos por inadimplência"]
[null,"4.1 Uso geral (administração e apoio operacional)",{"v":0,"d":"0.00"},{"$f":"IF('1 Identificação e Parâmetros'!$I$14=1,'2 DadosFinanServRSU'!C34*(1+'1 Identificação e Parâmetros'!$K$13),0)","v":{"v":0,"d":"0.00"}},null,"3. Doações e subvenções destinadas/vinculadas especificamente aos serviços (custeio ou investimentos)"]
[null,"4.2 Coleta convencional",{"v":0,"d":"0.00"},{"$f":"IF('1 Identificação e Parâmetros'!$I$14=1,'2 DadosFinanServRSU'!C35*(1+'1 Identificação e Parâmetros'!$K$13),0)","v":{"v":0,"d":"0.00"}}]
[null,"4.3 Coleta seletiva",{"v":0,"d":"0.00"},{"$f":"IF('1 Identificação e Parâmetros'!$I$14=1,'2 DadosFinanServRSU'!C36*(1+'1 Identificação e Parâmetros'!$K$13),0)","v":{"v":0,"d":"0.00"}}]
[null,"4.4 Unidade de triagem, compostagem e processamento (ecopontos)",{"v":0,"d":"0.00"},{"$f":"IF('1 Identificação e Parâmetros'!$I$14=1,'2 DadosFinanServRSU'!C37*(1+'1 Identificação e Parâmetros'!$K$13),0)","v":{"v":0,"d":"0.00"}}]
[null,"4.5 Transbordo e transporte",{"v":0,"d":"0.00"},{"$f":"IF('1 Identificação e Parâmetros'!$I$14=1,'2 DadosFinanServRSU'!C38*(1+'1 Identificação e Parâmetros'!$K$13),0)","v":{"v":0,"d":"0.00"}}]
[null,"4.6 Central de tratamento ou aterro sanitário",{"v":0,"d":"0.00"},{"$f":"IF('1 Identificação e Parâmetros'!$I$14=1,'2 DadosFinanServRSU'!C39*(1+'1 Identificação e Parâmetros'!$K$13),0)","v":{"v":0,"d":"0.00"}}]
[null,"5 Combustível e manutenção de veículos, máquinas e equipamentos — Subtotal",{"$f":"SUM(C41:C46)","v":{"v":91983.5,"d":"91,983.50"}},{"$f":"SUM(D41:D46)","v":{"v":102032.94201166384,"d":"102,032.94"}}]
[null,"5.1 Uso geral (administração e apoio operacional)",{"v":0,"d":"0.00"},{"$f":"IF('1 Identificação e Parâmetros'!$I$14=1,'2 DadosFinanServRSU'!C41*(1+'1 Identificação e Parâmetros'!$K$13),0)","v":{"v":0,"d":"0.00"}}]
[null,"5.2 Coleta convencional",{"$f":"'9 Dados_Exerc_Ferramenta'!$H$8+'9 Dados_Exerc_Ferramenta'!$H$9","v":{"v":49852.5,"d":"49,852.50"}},{"$f":"IF('1 Identificação e Parâmetros'!$I$14=1,'2 DadosFinanServRSU'!C42*(1+'1 Identificação e Parâmetros'!$K$13+'9 Dados_Exerc_Ferramenta'!K8),0)","v":{"v":55299.01821127128,"d":"55,299.02"}}]
[null,"5.3 Coleta seletiva",{"v":0,"d":"0.00"},{"$f":"IF('1 Identificação e Parâmetros'!$I$14=1,'2 DadosFinanServRSU'!C43*(1+'1 Identificação e Parâmetros'!$K$13),0)","v":{"v":0,"d":"0.00"}}]
[null,"5.4 Unidade de triagem, compostagem e processamento (ecopontos)",{"v":0,"d":"0.00"},{"$f":"IF('1 Identificação e Parâmetros'!$I$14=1,'2 DadosFinanServRSU'!C44*(1+'1 Identificação e Parâmetros'!$K$13),0)","v":{"v":0,"d":"0.00"}}]
[null,"5.5 Transbordo e transporte",{"v":0,"d":"0.00"},{"$f":"IF('1 Identificação e Parâmetros'!$I$14=1,'2 DadosFinanServRSU'!C45*(1+'1 Identificação e Parâmetros'!$K$13),0)","v":{"v":0,"d":"0.00"}}]
[null,"5.6 Central de tratamento ou aterro sanitário",{"$f":"'9 Dados_Exerc_Ferramenta'!$H$20+'9 Dados_Exerc_Ferramenta'!$H$21","v":{"v":42131,"d":"42,131.00"}},{"$f":"IF('1 Identificação e Parâmetros'!$I$14=1,'2 DadosFinanServRSU'!C46*(1+'1 Identificação e Parâmetros'!$K$13+'9 Dados_Exerc_Ferramenta'!K20),0)","v":{"v":46733.923800392564,"d":"46,733.92"}}]
[null,"6 Energia elétrica — Subtotal",{"$f":"SUM(C48:C52)","v":{"v":0,"d":"0.00"}},{"$f":"SUM(D48:D52)","v":{"v":0,"d":"0.00"}}]
[null,"6.1 Administração central",{"v":0,"d":"0.00"},{"$f":"IF('1 Identificação e Parâmetros'!$I$14=1,'2 DadosFinanServRSU'!C48*(1+'1 Identificação e Parâmetros'!$K$13),0)","v":{"v":0,"d":"0.00"}}]
[null,"6.2 Central de operação da coleta (convencional e seletiva)",{"v":0,"d":"0.00"},{"$f":"IF('1 Identificação e Parâmetros'!$I$14=1,'2 DadosFinanServRSU'!C49*(1+'1 Identificação e Parâmetros'!$K$13),0)","v":{"v":0,"d":"0.00"}}]
[null,"6.3 Unidade de triagem, compostagem e processamento (ecopontos)",{"v":0,"d":"0.00"},{"$f":"IF('1 Identificação e Parâmetros'!$I$14=1,'2 DadosFinanServRSU'!C50*(1+'1 Identificação e Parâmetros'!$K$13),0)","v":{"v":0,"d":"0.00"}}]
[null,"6.4 Central de transbordo/triagem",{"v":0,"d":"0.00"},{"$f":"IF('1 Identificação e Parâmetros'!$I$14=1,'2 DadosFinanServRSU'!C51*(1+'1 Identificação e Parâmetros'!$K$13),0)","v":{"v":0,"d":"0.00"}}]
[null,"6.5 Central de tratamento ou aterro sanitário",{"v":0,"d":"0.00"},{"$f":"IF('1 Identificação e Parâmetros'!$I$14=1,'2 DadosFinanServRSU'!C52*(1+'1 Identificação e Parâmetros'!$K$13),0)","v":{"v":0,"d":"0.00"}}]
[null,"7 Materiais de consumo — Subtotal",{"$f":"SUM(C54:C58)","v":{"v":0,"d":"0.00"}},{"$f":"SUM(D54:D58)","v":{"v":0,"d":"0.00"}}]
[null,"7.1 Administração central",{"v":0,"d":"0.00"},{"$f":"IF('1 Identificação e Parâmetros'!$I$14=1,'2 DadosFinanServRSU'!C54*(1+'1 Identificação e Parâmetros'!$K$13),0)","v":{"v":0,"d":"0.00"}}]
[null,"7.2 Central de operação da coleta (convencional e seletiva)",{"v":0,"d":"0.00"},{"$f":"IF('1 Identificação e Parâmetros'!$I$14=1,'2 DadosFinanServRSU'!C55*(1+'1 Identificação e Parâmetros'!$K$13),0)","v":{"v":0,"d":"0.00"}}]
[null,"7.3 Unidade de triagem, compostagem e processamento (ecopontos)",{"v":0,"d":"0.00"},{"$f":"IF('1 Identificação e Parâmetros'!$I$14=1,'2 DadosFinanServRSU'!C56*(1+'1 Identificação e Parâmetros'!$K$13),0)","v":{"v":0,"d":"0.00"}}]
[null,"7.4 Central de transbordo/triagem",{"v":0,"d":"0.00"},{"$f":"IF('1 Identificação e Parâmetros'!$I$14=1,'2 DadosFinanServRSU'!C57*(1+'1 Identificação e Parâmetros'!$K$13),0)","v":{"v":0,"d":"0.00"}}]
[null,"7.5 Central de tratamento ou aterro sanitário",{"v":0,"d":"0.00"},{"$f":"IF('1 Identificação e Parâmetros'!$I$14=1,'2 DadosFinanServRSU'!C58*(1+'1 Identificação e Parâmetros'!$K$13),0)","v":{"v":0,"d":"0.00"}}]
[null,"8 Despesas com a cobrança e arrecadação de taxas e tarifas",{"$f":"'9 Dados_Exerc_Ferramenta'!$C$15*'9 Dados_Exerc_Ferramenta'!$G$34*12","v":{"v":141590.4,"d":"141,590.40"}},{"$f":"IF('1 Identificação e Parâmetros'!$I$14=1,'2 DadosFinanServRSU'!C59*(1+'1 Identificação e Parâmetros'!$K$13),0)","v":{"v":151395.91176974442,"d":"151,395.91"}}]
[null,"9 Despesas diversas",{"$f":"'9 Dados_Exerc_Ferramenta'!$H$10+'9 Dados_Exerc_Ferramenta'!$H$22","v":{"v":29200,"d":"29,200.00"}},{"$f":"IF('1 Identificação e Parâmetros'!$I$14=1,'2 DadosFinanServRSU'!C60*(1+'1 Identificação e Parâmetros'!$K$13),0)","v":{"v":31222.177659477886,"d":"31,222.18"}}]
[null,"10 Despesas extraordinárias ou eventuais",{"v":0,"d":"0.00"},{"$f":"IF('1 Identificação e Parâmetros'!$I$14=1,'2 DadosFinanServRSU'!C61*(1+'1 Identificação e Parâmetros'!$K$13),0)","v":{"v":0,"d":"0.00"}}]
[null,"11 Provisões de despesas contingentes — cíveis e trabalhistas, desativação de aterro",{"v":0,"d":"0.00"},{"$f":"IF('1 Identificação e Parâmetros'!$I$14=1,'2 DadosFinanServRSU'!C62*(1+'1 Identificação e Parâmetros'!$K$13),0)","v":{"v":0,"d":"0.00"}}]
[null,"Total das despesas administrativas e operacionais (A)",{"$f":"SUM(C8,C14,C20,C28,C33,C40,C47,C53,C59,C60,C61,C62)","v":{"v":854683,"d":"854,683.00"}},{"$f":"SUM(D8,D14,D20,D28,D33,D40,D47,D53,D59,D60,D61,D62,D62)","v":{"v":928335.0928402581,"d":"928,335.09"}}]
[null,"12 Despesas indiretas ",{"$f":"C63*E64","v":{"v":85468.3,"d":"85,468.30"}},{"$f":"D63*E64","v":{"v":92833.50928402581,"d":"92,833.51"}},{"$f":"'1 Identificação e Parâmetros'!K11","v":{"v":0.1,"d":"10%"}}]
[null,"13 Despesas de depreciação e exaustão de ativos (B)",{"$f":"SUM(C66:C70)","v":{"v":105400,"d":"105,400.00"}},{"$f":"SUM(D66:D70)","v":{"v":110150,"d":"110,150.00"}}]
[null,"Depreciação de ativos do sistema de coleta convencional e seletiva ",{"$f":"-'3 Dados-Complementares'!F8+'3 Dados-Complementares'!E8-'3 Dados-Complementares'!F10+'3 Dados-Complementares'!E10-'3 Dados-Complementares'!F12+'3 Dados-Complementares'!E12","v":{"v":25000,"d":"25,000.00"}},{"$f":"-'3 Dados-Complementares'!G8+'3 Dados-Complementares'!F8-'3 Dados-Complementares'!G10+'3 Dados-Complementares'!F10-'3 Dados-Complementares'!G12+'3 Dados-Complementares'!F12","v":{"v":25000,"d":"25,000.00"}}]
[null,"Depreciação de ativos de unidades de processamento (triagem, compostagem), ecopontos",{"$f":"-'3 Dados-Complementares'!F15+'3 Dados-Complementares'!E15-'3 Dados-Complementares'!F17+'3 Dados-Complementares'!E17-'3 Dados-Complementares'!F19+'3 Dados-Complementares'!E19","v":{"v":0,"d":"0.00"}},{"$f":"-'3 Dados-Complementares'!G15+'3 Dados-Complementares'!F15-'3 Dados-Complementares'!G17+'3 Dados-Complementares'!F17-'3 Dados-Complementares'!G19+'3 Dados-Complementares'!F19","v":{"v":0,"d":"0.00"}}]
[null,"Depreciação de ativos de unidades de transbordo e transporte",{"$f":"-'3 Dados-Complementares'!F22+'3 Dados-Complementares'!E22-'3 Dados-Complementares'!F24+'3 Dados-Complementares'!E24-'3 Dados-Complementares'!F26+'3 Dados-Complementares'!E26","v":{"v":0,"d":"0.00"}},{"$f":"-'3 Dados-Complementares'!G22+'3 Dados-Complementares'!F22-'3 Dados-Complementares'!G24+'3 Dados-Complementares'!F24-'3 Dados-Complementares'!G26+'3 Dados-Complementares'!F26","v":{"v":0,"d":"0.00"}}]
[null,"Depreciação e exaustão de ativos da central de tratamento ou aterro sanitário",{"$f":"-'3 Dados-Complementares'!F29+'3 Dados-Complementares'!E29-'3 Dados-Complementares'!F31+'3 Dados-Complementares'!E31-'3 Dados-Complementares'!F33+'3 Dados-Complementares'!E33-'3 Dados-Complementares'!F35+'3 Dados-Complementares'!E35-'3 Dados-Complementares'!F37+'3 Dados-Complementares'!E37","v":{"v":80400,"d":"80,400.00"}},{"$f":"-'3 Dados-Complementares'!G29+'3 Dados-Complementares'!F29-'3 Dados-Complementares'!G31+'3 Dados-Complementares'!F31-'3 Dados-Complementares'!G33+'3 Dados-Complementares'!F33-'3 Dados-Complementares'!G35+'3 Dados-Complementares'!F35-'3 Dados-Complementares'!G37+'3 Dados-Complementares'!F37","v":{"v":85150,"d":"85,150.00"}}]
[null,"Depreciação de bens de uso geral e da administração central e unidades de apoio técnico",{"$f":"-'3 Dados-Complementares'!F40+'3 Dados-Complementares'!E40-'3 Dados-Complementares'!F42+'3 Dados-Complementares'!E42-'3 Dados-Complementares'!F44+'3 Dados-Complementares'!E44","v":{"v":0,"d":"0.00"}},{"$f":"-'3 Dados-Complementares'!G40+'3 Dados-Complementares'!F40-'3 Dados-Complementares'!G42+'3 Dados-Complementares'!F42-'3 Dados-Complementares'!G44+'3 Dados-Complementares'!F44","v":{"v":0,"d":"0.00"}}]
[null,"14 Despesas financeiras — juros e encargos de empréstimos (C)",{"v":0,"d":"0.00"},{"v":0,"d":"0.00"}]
[null,"15 PIS/PASEP — sobre receitas do serviço RSU (D)",{"$f":"SUM(C63,C64,C65,C71)/0.99*0.01","v":{"v":10561.124242424243,"d":"10,561.12"}},{"$f":"SUM(D63,D64,D65,D71)/0.99*0.01","v":{"v":11427.460627518021,"d":"11,427.46"}}]
[null,"16 Despesas de regulação e fiscalização dos serviços (E)",{"v":0,"d":"0.00"},{"v":0,"d":"0.00"}]
[null,"Custo Contábil Total dos Serviços (A+B+C+D+E)",{"$f":"C63+C64+C65+C71+C72+C73","v":{"v":1056112.4242424243,"d":"1,056,112.42"}},{"$f":"D63+D64+D65+D71+D72+D73","v":{"v":1142746.0627518022,"d":"1,142,746.06"}}]
[null,"Fontes: Relatórios contábeis e gerenciais do prestador"]

{"sheet":"3 Dados-Complementares","index":3,"n_rows":76,"n_cols":8,"rows_kept":76,"merged":[[1,1,1,6],[1,7,4,7],[2,1,3,3],[2,4,2,6],[5,1,11,1],[6,2,7,2],[8,2,9,2],[10,2,11,2],[12,1,18,1],[13,2,14,2],[15,2,16,2],[17,2,18,2],[19,1,25,1],[20,2,21,2],[22,2,23,2],[24,2,25,2],[26,1,36,1],[27,2,28,2],[29,2,30,2],[31,2,32,2],[33,2,34,2],[35,2,36,2],[37,1,43,1],[38,2,39,2],[40,2,41,2],[42,2,43,2],[44,1,46,1],[44,2,45,2],[46,2,46,3],[49,1,49,6],[50,1,50,3],[51,1,51,3],[52,1,52,3],[53,1,53,3],[54,1,54,3],[55,1,55,3],[56,1,56,3],[57,1,57,3],[58,1,58,3],[59,1,59,3],[60,1,60,3]]}
[null,"RETORNAR AO SUMÁRIO"]
[null,"Tabela 1 — Estrutura sintética de dados financeiro-contábeis dos ativos imobilizados ",{"$nulls":5},"Taxas de depreciação, amortização e exaustão sugeridas\n(% por ano)"]
[null,"Nesta tabela, devem ser informados os valores acumulados de aquisição, construção ou implantação dos bens que compõem os ativos imobilizados vinculados à prestação do serviço, bem como os respectivos valores acumulados de depreciação, amortização ou exaustão. ",null,null,"Valores"]
[{"$nulls":4},"Saldo anterior","Ano-base","Ano atual"]
[null,"Centros de custos","Alocações (bens)","Elementos contábeis",{"$f":"F5-1","v":{"v":2020,"d":"2,020"}},{"$f":"'1 Identificação e Parâmetros'!K9","v":{"v":2021,"d":"2,021"}},{"$f":"F5+1","v":{"v":2022,"d":"2,022"}}]
[null,"Atividades de Coleta de Resíduos","Terrenos","Valor de aquisição acumulado",0,0,0]
[null,null,"Edificações e instalações","Valor de aquisição/construção acumulado",0,0,0]
[{"$nulls":3},"(-) Valor da depreciação acumulada",0,0,{"$f":"F8-(F7+G7)/2*$H8","v":0},{"v":0.02,"d":"2%"}]
[null,null,"Veículos, máquinas e equipamentos operacionais","Valor de aquisição acumulado",{"$f":"'9 Dados_Exerc_Ferramenta'!$B$44","v":{"v":250000,"d":"250,000"}},{"$f":"E9","v":{"v":250000,"d":"250,000"}},{"$f":"F9","v":{"v":250000,"d":"250,000"}}]
[{"$nulls":3},"(-) Valor da depreciação acumulada",{"$f":"-E9*55%","v":{"v":-137500,"d":"-137,500 "}},{"$f":"E10-F9*H10","v":{"v":-162500,"d":"-162,500 "}},{"$f":"F10-(F9+G9)/2*$H$10","v":{"v":-187500,"d":"-187,500 "}},{"v":0.1,"d":"10%"}]
[null,null,"Mobiliários e outros bens móveis","Valor de aquisição acumulado",0,0,0]
[{"$nulls":3},"(-) Valor da depreciação acumulada",0,0,{"$f":"F12-(F11+G11)/2*H12","v":0},{"v":0.1,"d":"10%"}]
[null,"Unidades de Processamento de Resíduos (triagem, compostagem, outros) ","Terrenos","Valor de aquisição acumulado",0,0,0]
[null,null,"Edificações e instalações","Valor de aquisição/construção acumulado",0,0,0]
[{"$nulls":3},"(-) Valor da depreciação acumulada",0,0,{"$f":"F15-(F14+G14)/2*H15","v":0},{"v":0.02,"d":"2%"}]
[null,null,"Veículos, máquinas e equipamentos operacionais","Valor de aquisição acumulado",0,0,0]
[{"$nulls":3},"(-) Valor da depreciação acumulada",0,0,{"$f":"F17-(F16+G16)/2*H17","v":0},{"v":0.1,"d":"10%"}]
[null,null,"Mobiliários e outros bens móveis","Valor de aquisição acumulado",0,0,0]
[{"$nulls":3},"(-) Valor da depreciação acumulada",0,0,{"$f":"F19-(F18+G18)/2*H19","v":0},{"v":0.1,"d":"10%"}]
[null,"Unidades de Transbordo e Transporte para Central de Tratamento","Terrenos ","Valor de aquisição acumulado",0,0,0]
[null,null,"Edificações e instalações de Transbordo","Valor de aquisição/construção acumulado",0,0,0]
[{"$nulls":3},"(-) Valor da depreciação/exaustão acumulada",0,0,{"$f":"F22-(F21+G21)/2*H22","v":0},{"v":0.02,"d":"2%"}]
[null,null,"Veículos, máquinas e equipamentos operacionais","Valor de aquisição acumulado",0,0,0]
[{"$nulls":3},"(-) Valor da depreciação acumulada",0,0,{"$f":"F24-(F23+G23)/2*H24","v":0},{"v":0.1,"d":"10%"}]
[null,null,"Mobiliários e outros bens móveis","Valor de aquisição acumulado",0,0,0]
[{"$nulls":3},"(-) Valor da depreciação acumulada",0,0,{"$f":"F26-(F25+G25)/2*H26","v":0},{"v":0.1,"d":"10%"}]
[null,"Unidades de Disposição Final (central de tratamento, aterro sanitário)","Terrenos - uso permanente","Valor de aquisição acumulado",0,0,0]
[null,null,"Edificações e instalações de uso permanente","Valor de aquisição/construção acumulado",{"$f":"'9 Dados_Exerc_Ferramenta'!$B$36+'9 Dados_Exerc_Ferramenta'!$B$37+'9 Dados_Exerc_Ferramenta'!$B$38","v":{"v":120000,"d":"120,000"}},{"$f":"E28","v":{"v":120000,"d":"120,000"}},{"$f":"F28","v":{"v":120000,"d":"120,000"}}]
[{"$nulls":3},"(-) Valor da depreciação acumulada",{"$f":"-E28*H29","v":{"v":-6000,"d":"-6,000 "}},{"$f":"E29-F28*H29","v":{"v":-12000,"d":"-12,000 "}},{"$f":"F29-(F28+G28)/2*H29","v":{"v":-18000,"d":"-18,000 "}},{"v":0.05,"d":"5%"}]
[null,null,"Terreno e instalações Aterro Sanitário (exaustão/amortiz.)","Valor de aquisição/construção acumulado",{"$f":"'9 Dados_Exerc_Ferramenta'!$B$34+'9 Dados_Exerc_Ferramenta'!$B$35","v":{"v":325000,"d":"325,000"}},{"$f":"E30","v":{"v":325000,"d":"325,000"}},{"$f":"F30","v":{"v":325000,"d":"325,000"}}]
[{"$nulls":3},"(-) Valor da depreciação acumulada",{"$f":"-E30*H31","v":{"v":-16250,"d":"-16,250 "}},{"$f":"E31-F30*H31","v":{"v":-32500,"d":"-32,500 "}},{"$f":"F31-(F30+G30)/2*H31","v":{"v":-48750,"d":"-48,750 "}},{"v":0.05,"d":"5%"}]
[null,null,"Células individuais de aterramento","Valor de construção acumulado",{"$f":"'9 Dados_Exerc_Ferramenta'!$B$39","v":{"v":65500,"d":"65,500"}},{"$f":"E32","v":{"v":65500,"d":"65,500"}},{"$f":"F32+'9 Dados_Exerc_Ferramenta'!$B$41","v":{"v":140500,"d":"140,500"}}]
[{"$nulls":3},"(-) Valor da depreciação acumulada",{"$f":"-E32*H33","v":{"v":-32750,"d":"-32,750 "}},{"$f":"E33-F32*H33","v":{"v":-65500,"d":"-65,500 "}},{"$f":"-(G32-F33)*H33","v":{"v":-103000,"d":"-103,000 "}},{"v":0.5,"d":"50%"}]
[null,null,"Veículos, máquinas e equipamentos operacionais","Valor de aquisição acumulado",{"$f":"'9 Dados_Exerc_Ferramenta'!$B$45*60%+'9 Dados_Exerc_Ferramenta'!$B$46*40%","v":{"v":254000,"d":"254,000"}},{"$f":"E34","v":{"v":254000,"d":"254,000"}},{"$f":"F34","v":{"v":254000,"d":"254,000"}}]
[{"$nulls":3},"(-) Valor da depreciação acumulada",{"$f":"-('9 Dados_Exerc_Ferramenta'!$B$45*60%*40%+'9 Dados_Exerc_Ferramenta'!$B$46*40%*30%)","v":{"v":-94800,"d":"-94,800 "}},{"$f":"E35-F34*H35","v":{"v":-120200,"d":"-120,200 "}},{"$f":"F35-(F34+G34)/2*H35","v":{"v":-145600,"d":"-145,600 "}},{"v":0.1,"d":"10%"}]
[null,null,"Mobiliários e outros bens móveis","Valor de aquisição acumulado",0,0,0]
[{"$nulls":3},"(-) Valor da depreciação acumulada",0,0,{"$f":"F37-(F36+G36)/2*H37","v":0},{"v":0.1,"d":"10%"}]
[null,"Bens de Uso Geral do Serviço RSU — Administrativos e Operacionais","Bens imóveis (terrenos)","Valor de aquisição acumulado",0,0,0]
[null,null,"Bens imóveis (edificações e instalações)","Valor de aquisição acumulado",0,0,0]
[{"$nulls":3},"(-) Valor da depreciação acumulada",0,0,{"$f":"F40-(F39+G39)/2*H40","v":0},{"v":0.02,"d":"2%"}]
[null,null,"Veículos, máquinas e equipamentos operacionais","Valor de aquisição acumulado",0,0,0]
[{"$nulls":3},"(-) Valor da depreciação acumulada",0,0,{"$f":"F42-(F41+G41)/2*H42","v":0},{"v":0.1,"d":"10%"}]
[null,null,"Mobiliários e outros bens móveis","Valor de aquisição acumulado",0,0,0]
[{"$nulls":3},"(-) Valor da depreciação acumulada",0,0,{"$f":"F44-(F43+G43)/2*H44","v":0},{"v":0.1,"d":"10%"}]
[null,"TOTAIS","Ativos imobilizados totais","Valor de aquisição acumulado",{"$f":"E6+E7+E9+E11+E13+E14+E16+E18+E20+E21+E23+E25+E27+E28+E30+E32+E34+E36+E38+E39+E41+E43","v":{"v":1014500,"d":"1,014,500"}},{"$f":"F6+F7+F9+F11+F13+F14+F16+F18+F20+F21+F23+F25+F27+F28+F30+F32+F34+F36+F38+F39+F41+F43","v":{"v":1014500,"d":"1,014,500"}},{"$f":"G6+G7+G9+G11+G13+G14+G16+G18+G20+G21+G23+G25+G27+G28+G30+G32+G34+G36+G38+G39+G41+G43","v":{"v":1089500,"d":"1,089,500"}}]
[{"$nulls":3},"(-) Valor de depreciação/exaustão acumulado",{"$f":"E8+E10+E12+E15+E17+E19+E22+E24+E26+E29+E31+E33+E35+E37+E40+E42+E44","v":{"v":-287300,"d":"-287,300 "}},{"$f":"F8+F10+F12+F15+F17+F19+F22+F24+F26+F29+F31+F33+F35+F37+F40+F42+F44","v":{"v":-392700,"d":"-392,700 "}},{"$f":"G8+G10+G12+G15+G17+G19+G22+G24+G26+G29+G31+G33+G35+G37+G40+G42+G44","v":{"v":-502850,"d":"-502,850 "}}]
[null,null,"Ativos imobilizados — Saldo Líquido",null,{"$f":"E45+E46","v":{"v":727200,"d":"727,200"}},{"$f":"F45+F46","v":{"v":621800,"d":"621,800"}},{"$f":"G45+G46","v":{"v":586650,"d":"586,650"}}]
[null,"Fonte: balancete analítico do ativo (se estiver adequado às novas normas de contabilidade pública) ou sistema de controle patrimonial"]
[]
[null,"Tabela 2 — INFORMAÇÕES OPERACIONAIS"]
[null,"Quantidade de resíduos movimentados",{"$nulls":3},{"$f":"'1 Identificação e Parâmetros'!K9","v":2021},{"$f":"F51+1","v":2022}]
[null,"Massa de resíduos coletada — Total (ton)",{"$nulls":3},{"$f":"SUM(F53:F55)","v":{"v":2619.1305,"d":"2,619"}},{"$f":"SUM(G53:G55)","v":{"v":2666.274849,"d":"2,666"}}]
[null,"Massa de RDO coletada ANUALMENTE (coleta convencional)  (ton)",{"$nulls":3},{"$f":"'9 Dados_Exerc_Ferramenta'!$C$17","v":{"v":2619.1305,"d":"2,619"}},{"$f":"'9 Dados_Exerc_Ferramenta'!$D$17","v":{"v":2666.274849,"d":"2,666"}}]
[null,"Massa de resíduos recicláveis coletada ANUALMENTE (coleta seletiva)  (ton)"]
[null,"Massa de RPU coletada ANUALMENTE (varrição, entulhos e outros) (ton)"]
[null,"Massa de resíduos entregues pelos geradores diretamente na central de tratamento (ton)"]
[null,"Massa de resíduos entregues pelos geradores diretamente em unidades de triagem/processamento (ton)"]
[null,"Massa de resíduos recuperados nas unidades de triagem/processamento (ton)"]
[null,"Massa TOTAL de resíduos destinados a unidades de transbordo (ton)"]
[null,"Massa TOTAL de resíduos destinados a centrais ou aterros sanitários de terceiros (ton)"]
[null,"Massa TOTAL de resíduos  destinados a centrais ou aterros sanitários próprios (ton)",{"$nulls":3},{"$f":"F53","v":{"v":2619.1305,"d":"2,619"}},{"$f":"G53","v":{"v":2666.274849,"d":"2,666"}}]
[null,"Fonte: Relatórios gerenciais dos serviços"]
{"$rows_empty":13}
[null,"Fonte: Relatórios gerenciais do Prestador"]

{"sheet":"4 Dados Cadastrais-USUÁRIOS","index":4,"n_rows":30,"n_cols":6,"rows_kept":30,"merged":[[1,1,1,5],[2,1,2,5],[3,1,5,1],[11,1,11,5],[12,1,14,1],[12,2,12,3],[12,4,12,5],[13,2,13,3],[13,4,13,5],[20,1,20,5],[21,1,23,1],[21,2,21,3],[21,4,21,5],[22,2,22,3],[22,4,22,5],[29,1,29,5]]}
[null,"RETORNAR \nAO SUMÁRIO"]
[null,"Informações cadastrais dos domicílios/imóveis com serviço de manejo de RSU à disposição"]
[null,"I - Fator de rateio da taxa ou tarifa com base na quantidade de domicílios/imóveis com coleta de RSU"]
[null,"Categoria/Tipologia de domicílios/usuários","Ano-Base","Ano Atual"]
[null,null,{"$f":"'1 Identificação e Parâmetros'!K9","v":2021},{"$f":"C5+1","v":2022}]
[null,null,"Quant Imóveis","Quant Imóveis"]
[null,"Residenciais",{"v":3219.3,"d":"3,219"},{"v":3283.686,"d":"3,284"}]
[null,"Comerciais e serviços ",127,130]
[null,"Industriais",3,3]
[null,"Públicos e filantrópicos de interesse público",21,21]
[null,"Total de domicílios/imóveis",{"$f":"SUM(C7:C10)","v":{"v":3370.3,"d":"3,370"}},{"$f":"SUM(D7:D10)","v":{"v":3437.686,"d":"3,438"}}]
[null,"II - Fator de rateio da taxa ou tarifa com base no volume faturado de água dos imóveis com coleta de RSU"]
[null,"Categoria/Tipologia de domicílios/usuários","Ano-Base",null,"Ano Atual"]
[null,null,{"$f":"C5","v":2021},null,{"$f":"C14+1","v":2022}]
[null,null,"Quant Imóveis","Vol Faturado m³","Quant Imóveis","Vol Faturado m³"]
[null,"Residenciais",{"v":3219.3,"d":"3,219"},null,{"v":3283.686,"d":"3,284"}]
[null,"Comerciais e serviços ",127,null,130]
[null,"Industriais",3,null,3]
[null,"Públicos e filantrópicos de interesse público",21,null,21]
[null,"Total ",{"$f":"SUM(C16:C19)","v":{"v":3370.3,"d":"3,370"}},{"v":684170.9,"d":"684,171"},{"$f":"SUM(E16:E19)","v":{"v":3437.686,"d":"3,438"}},{"v":677224.1420000001,"d":"677,224"}]
[null,"III - Fator de rateio da taxa ou tarifa com base na área total construída dos imóveis com coleta de RSU"]
[null,"Categoria/Tipologia de domicílios/usuários","Ano-Base",null,"Ano Atual"]
[null,null,{"$f":"C14","v":2021},null,{"$f":"C23+1","v":2022}]
[null,null,"Quant Imóveis","Área Construída m²","Quant Imóveis","Área Construída m²"]
[null,"Residenciais",{"v":3219.3,"d":"3,219"},null,{"v":3283.686,"d":"3,284"}]
[null,"Comerciais e serviços ",127,null,130]
[null,"Industriais",3,null,3]
[null,"Públicos e filantrópicos de interesse público",21,null,21]
[null,"Total",{"$f":"SUM(C25:C28)","v":{"v":3370.3,"d":"3,370"}},{"$f":"C29*100","v":{"v":337030,"d":"337,030"}},{"$f":"SUM(E25:E28)","v":{"v":3437.686,"d":"3,438"}},{"$f":"E29*100","v":{"v":343768.60000000003,"d":"343,769"}}]
[null,"Fontes: Cadastro imobiliário de contribuintes do IPTU/TMRS e/ou Cadastro de usuários do prestador do serviço de manejo de resíduos ou do serviço de abastecimento de água."]

{"sheet":"5.1 CalcCustoVBC-Completo","index":5,"n_rows":40,"n_cols":6,"rows_kept":40,"merged":[[1,1,1,4],[2,1,2,4],[3,1,4,2],[5,1,17,1],[18,1,18,2],[19,1,19,2],[22,1,22,2],[23,1,26,1],[27,1,27,2],[29,1,29,4],[30,1,31,1],[32,1,33,1],[34,1,35,1],[36,1,37,1],[38,1,39,1]]}
[null,"RETORNAR AO SUMÁRIO"]
[null,"Cálculo do custo regulatório do serviço de manejo de resíduos sólidos urbanos"]
[null,"Esta planilha será utilizada se for escolhida a aplicação da VERSÃO COMPLETA da ferramenta.\nOs dados desta planilha são importados e processados automaticamente das planilhas 2, 3 e 4."]
[null,"ELEMENTO DE DESPESAS (R$)",null,"Ano-Base","Ano Atual"]
[{"$nulls":3},{"$f":"'1 Identificação e Parâmetros'!K9","v":2021},{"$f":"D5+1","v":2022}]
[null,"Despesas Diretas —\nAdministrativas e Operacionais ","1.1 Pessoal próprio (inclui cedido de outros órgãos)",{"$f":"'2 DadosFinanServRSU'!C8","v":{"v":539184.1,"d":"539,184"}},{"$f":"IF('1 Identificação e Parâmetros'!$I$14=2,0,'2 DadosFinanServRSU'!D8)","v":{"v":587307.7149234825,"d":"587,308"}}]
[null,null,"1.2 Pessoal contratado (mão de obra terceirizada)",{"$f":"'2 DadosFinanServRSU'!C14","v":0},{"$f":"IF('1 Identificação e Parâmetros'!$I$14=2,0,'2 DadosFinanServRSU'!D14)","v":0}]
[null,null,"2 Serviços de terceiros (coleta, transporte, operação de aterro, disposição de RSU etc.)",{"$f":"'2 DadosFinanServRSU'!C20","v":{"v":52725,"d":"52,725"}},{"$f":"IF('1 Identificação e Parâmetros'!$I$14=2,0,'2 DadosFinanServRSU'!D20)","v":{"v":56376.34647588943,"d":"56,376"}}]
[null,null,"3 Aluguel de imóveis",{"$f":"'2 DadosFinanServRSU'!C28","v":0},{"$f":"IF('1 Identificação e Parâmetros'!$I$14=2,0,'2 DadosFinanServRSU'!D28)","v":0}]
[null,null,"4 Aluguel de veículos, máquinas e equipamentos",{"$f":"'2 DadosFinanServRSU'!C33","v":0},{"$f":"IF('1 Identificação e Parâmetros'!$I$14=2,0,'2 DadosFinanServRSU'!D33)","v":0}]
[null,null,"5 Combustível e manutenção de veículos, máquinas e equipamentos",{"$f":"'2 DadosFinanServRSU'!C40","v":{"v":91983.5,"d":"91,984"}},{"$f":"IF('1 Identificação e Parâmetros'!$I$14=2,0,'2 DadosFinanServRSU'!D40)","v":{"v":102032.94201166384,"d":"102,033"}}]
[null,null,"6 Energia elétrica",{"$f":"'2 DadosFinanServRSU'!C47","v":0},{"$f":"IF('1 Identificação e Parâmetros'!$I$14=2,0,'2 DadosFinanServRSU'!D47)","v":0}]
[null,null,"7 Material de consumo",{"$f":"'2 DadosFinanServRSU'!C53","v":0},{"$f":"IF('1 Identificação e Parâmetros'!$I$14=2,0,'2 DadosFinanServRSU'!D53)","v":0}]
[null,null,"8 Despesas com a cobrança e arrecadação de taxas e tarifas",{"$f":"'2 DadosFinanServRSU'!C59","v":{"v":141590.4,"d":"141,590"}},{"$f":"IF('1 Identificação e Parâmetros'!$I$14=2,0,'2 DadosFinanServRSU'!D59)","v":{"v":151395.91176974442,"d":"151,396"}}]
[null,null,"9 Despesas diversas ",{"$f":"'2 DadosFinanServRSU'!C60","v":{"v":29200,"d":"29,200"}},{"$f":"IF('1 Identificação e Parâmetros'!$I$14=2,0,'2 DadosFinanServRSU'!D60)","v":{"v":31222.177659477886,"d":"31,222"}}]
[null,null,"10 Despesas extraordinárias ou eventuais",{"$f":"'2 DadosFinanServRSU'!C61","v":0},{"$f":"IF('1 Identificação e Parâmetros'!$I$14=2,0,'2 DadosFinanServRSU'!D61)","v":0}]
[null,null,"11 Provisões de despesas contingentes — cíveis e trabalhistas",{"$f":"'2 DadosFinanServRSU'!C62","v":0},{"$f":"IF('1 Identificação e Parâmetros'!$I$14=2,0,'2 DadosFinanServRSU'!D62)","v":0}]
[null,null,"Subtotal — Despesas administrativas e operacionais (A)",{"$f":"SUM(D6:D17)","v":{"v":854683,"d":"854,683"}},{"$f":"SUM(E6:E17)","v":{"v":928335.0928402581,"d":"928,335"}}]
[null,"Despesas indiretas (se não houver informações nos itens anteriores)",null,{"$f":"'2 DadosFinanServRSU'!C64","v":{"v":85468.3,"d":"85,468"}},{"$f":"IF('1 Identificação e Parâmetros'!$I$14=2,0,'2 DadosFinanServRSU'!D64)","v":{"v":92833.50928402581,"d":"92,834"}},{"$f":"'1 Identificação e Parâmetros'!K11","v":{"v":0.1,"d":"10%"}}]
[null,"Depreciação e exaustão de ativos imobilizados (B)",null,{"$f":"'2 DadosFinanServRSU'!C65*'1 Identificação e Parâmetros'!$K$10","v":{"v":105400,"d":"105,400"}},{"$f":"IF('1 Identificação e Parâmetros'!$I$14=2,0,'2 DadosFinanServRSU'!D65*'1 Identificação e Parâmetros'!$K$10)","v":{"v":110150,"d":"110,150"}}]
[null,"Despesas tributárias","PIS/PASEP e outros tributos sobre a receita (C) ",{"$f":"'2 DadosFinanServRSU'!C72","v":{"v":10561.124242424243,"d":"10,561"}},{"$f":"IF('1 Identificação e Parâmetros'!$I$14=2,0,'2 DadosFinanServRSU'!D72)","v":{"v":11427.460627518021,"d":"11,427"}}]
[null,"Despesas financeiras","Despesas de juros e encargos de empréstimos (D)",{"$f":"'2 DadosFinanServRSU'!C71","v":0},{"$f":"IF('1 Identificação e Parâmetros'!$I$14=2,0,'2 DadosFinanServRSU'!D71)","v":0}]
[null,"Custo Contábil Total do Serviço (A+B+C+D)  (E)",null,{"$f":"D18+D19+D20+D21+D22","v":{"v":1056112.4242424243,"d":"1,056,112"}},{"$f":"E18+E19+E20+E21+E22","v":{"v":1142746.0627518022,"d":"1,142,746"}}]
[null,"Custo e ajustes regulatórios","Remuneração dos investimentos em operação — capital próprio (F)",{"$f":"'3 Dados-Complementares'!F47*'1 Identificação e Parâmetros'!$K$15-D22","v":{"v":40106.1,"d":"40,106"}},{"$f":"IF('1 Identificação e Parâmetros'!$I$14=2,0,'3 Dados-Complementares'!G47*'1 Identificação e Parâmetros'!$K$15-E22)","v":{"v":37838.925,"d":"37,839"}}]
[null,null,"Acréscimos regulatórios (G)  ",{"$f":"(('2 DadosFinanServRSU'!G9-'2 DadosFinanServRSU'!G13)+'2 DadosFinanServRSU'!G12)+(D23+D24)*'9 Dados_Exerc_Ferramenta'!G30+(D23+D24)*'9 Dados_Exerc_Ferramenta'!G31","v":{"v":60292.01883333334,"d":"60,292"}},{"$f":"(IF('1 Identificação e Parâmetros'!$I$14=2,0,('2 DadosFinanServRSU'!H9-'2 DadosFinanServRSU'!H13)+'2 DadosFinanServRSU'!H12))+(E23+E24)*'9 Dados_Exerc_Ferramenta'!G30+(E23+E24)*'9 Dados_Exerc_Ferramenta'!G31","v":{"v":64932.17432634912,"d":"64,932"}}]
[null,null,"Deduções regulatórias (H)",{"$f":"-'2 DadosFinanServRSU'!G20-'2 DadosFinanServRSU'!G25","v":0},{"$f":"IF('1 Identificação e Parâmetros'!$I$14=2,0,-'2 DadosFinanServRSU'!H20-'2 DadosFinanServRSU'!H25)","v":0}]
[null,null,"Despesas com a regulação dos serviços (I)",{"$f":"'2 DadosFinanServRSU'!C73","v":0},{"$f":"IF('1 Identificação e Parâmetros'!$I$14=2,0,'2 DadosFinanServRSU'!D73)","v":0}]
[null,"Custo Regulatório Total do Serviço (E+F+G+H+I)  (J)",null,{"$f":"SUM(D23:D27)","v":{"v":1156510.5430757578,"d":"1,156,511"}},{"$f":"IF('1 Identificação e Parâmetros'!$I$14=1,SUM(E23:E27),D28*(1+'1 Identificação e Parâmetros'!K13))","v":{"v":1245517.1620781512,"d":"1,245,517"}}]
[]
[null,"Valores Básicos de Cálculo das Taxas ou Tarifas de Manejo de Resíduos (VBC)"]
[null,"Opção 1 ","VBC — Custo médio unitário por tonelada coletada (R$/ton)",{"$f":"D28/D32","v":{"v":441.56277935588076,"d":"441.56"}},{"$f":"E28/E32","v":{"v":467.1375730620153,"d":"467.14"}}]
[null,null,"Quantidade total de resíduos coletados (ton)",{"$f":"'3 Dados-Complementares'!F52","v":{"v":2619.1305,"d":"2,619"}},{"$f":"'3 Dados-Complementares'!G52","v":{"v":2666.274849,"d":"2,666"}}]
[null,"Opção 2","VBC — Custo médio anual por domicílio (R$/dom)",{"$f":"D28/D34","v":{"v":343.14765542407434,"d":"343.15"}},{"$f":"E28/E34","v":{"v":362.3126609231184,"d":"362.31"}}]
[null,null,"Quantidade total de domicílios com serviço à disposição (domicílio)",{"$f":"'4 Dados Cadastrais-USUÁRIOS'!C11","v":{"v":3370.3,"d":"3,370"}},{"$f":"'4 Dados Cadastrais-USUÁRIOS'!D11","v":{"v":3437.686,"d":"3,438"}}]
[null,"Opção 3","VBC — Custo médio mensal por domicílio (R$/dom)",{"$f":"D28/D36/12","v":{"v":28.595637952006197,"d":"28.60"}},{"$f":"E28/E36/12","v":{"v":30.1927217435932,"d":"30.19"}}]
[null,null,"Quantidade total de domicílios com serviço à disposição (domicílio)",{"$f":"'4 Dados Cadastrais-USUÁRIOS'!C11","v":{"v":3370.3,"d":"3,370"}},{"$f":"'4 Dados Cadastrais-USUÁRIOS'!D11","v":{"v":3437.686,"d":"3,438"}}]
[null,"Opção 4","VBC — Custo médio unitário por m³ de água consumida (R$/m³)",{"$f":"D28/D38","v":{"v":1.690382539034849,"d":"1.69"}},{"$f":"E28/E38","v":{"v":1.8391505630615146,"d":"1.84"}}]
[null,null,"Volume total de água consumido ou faturado no ano (m³)",{"$f":"'4 Dados Cadastrais-USUÁRIOS'!D20","v":{"v":684170.9,"d":"684,171"}},{"$f":"'4 Dados Cadastrais-USUÁRIOS'!F20","v":{"v":677224.1420000001,"d":"677,224"}}]
[null,"Opção 5","VBC — Custo médio unitário por m2 de área construida (R$/m2)",{"$f":"D28/D40","v":{"v":3.4314765542407435,"d":"3.43"}},{"$f":"E28/E40","v":{"v":3.623126609231184,"d":"3.62"}}]
[null,null,"Área total construída dos domicílios usuários do serviço (m2)",{"$f":"'4 Dados Cadastrais-USUÁRIOS'!D29","v":{"v":337030,"d":"337,030"}},{"$f":"'4 Dados Cadastrais-USUÁRIOS'!F29","v":{"v":343768.60000000003,"d":"343,769"}}]

{"sheet":"5.2 CalcCustoVBC-Simplificado","index":6,"n_rows":40,"n_cols":6,"rows_kept":40,"merged":[[1,1,1,4],[2,1,2,4],[3,1,4,2],[5,1,17,1],[18,1,18,2],[19,1,19,2],[22,1,22,2],[23,1,26,1],[27,1,27,2],[29,1,29,4],[30,1,31,1],[32,1,33,1],[34,1,35,1],[36,1,37,1],[38,1,39,1]]}
[null,"RETORNAR AO SUMÁRIO"]
[null,"Cálculo do custo regulatório do serviço de manejo de resíduos sólidos urbanos"]
[null,"Esta planilha somente deve ser utilizada se for escolhida a aplicação da VERSÃO SIMPLIFICADA da ferramenta.\nNeste caso, as informações das despesas podem ser inseridas diretamente nesta planilha."]
[null,"ELEMENTO DE DESPESAS (R$)",null,"Ano-Base","Ano Atual"]
[{"$nulls":3},{"$f":"'1 Identificação e Parâmetros'!K9","v":2021},{"$f":"D5+1","v":2022}]
[null,"Despesas Diretas — \nAdministrativas e Operacionais ","1.1 Pessoal próprio (inclui cedido de outros órgãos)",{"$f":"'9 Dados_Exerc_Ferramenta'!H3+'9 Dados_Exerc_Ferramenta'!H15","v":{"v":539184.1,"d":"539,184"}},{"$f":"IF('1 Identificação e Parâmetros'!$I$14=2,0,D6*(1+'1 Identificação e Parâmetros'!$K$13+'9 Dados_Exerc_Ferramenta'!K3))","v":{"v":587307.7149234825,"d":"587,308"}}]
[null,null,"1.2 Pessoal contratado (mão de obra terceirizada)",null,{"$f":"IF('1 Identificação e Parâmetros'!$I$14=2,0,D7*(1+'1 Identificação e Parâmetros'!$K$13))","v":0}]
[null,null,"2 Serviços de terceiros (coleta, transporte, operação de aterro, disposição de RSU etc.)",{"$f":"'9 Dados_Exerc_Ferramenta'!H5+'9 Dados_Exerc_Ferramenta'!H17","v":{"v":52725,"d":"52,725"}},{"$f":"IF('1 Identificação e Parâmetros'!$I$14=2,0,D8*(1+'1 Identificação e Parâmetros'!$K$13))","v":{"v":56376.34647588943,"d":"56,376"}}]
[null,null,"3 Aluguel de imóveis",null,{"$f":"IF('1 Identificação e Parâmetros'!$I$14=2,0,D9*(1+'1 Identificação e Parâmetros'!$K$13))","v":0}]
[null,null,"4 Aluguel de veículos, máquinas e equipamentos",null,{"$f":"IF('1 Identificação e Parâmetros'!$I$14=2,0,D10*(1+'1 Identificação e Parâmetros'!$K$13))","v":0}]
[null,null,"5 Combustível e manutenção de veículos, máquinas e equipamentos",{"$f":"'9 Dados_Exerc_Ferramenta'!H8+'9 Dados_Exerc_Ferramenta'!H9+'9 Dados_Exerc_Ferramenta'!H20+'9 Dados_Exerc_Ferramenta'!H21","v":{"v":91983.5,"d":"91,984"}},{"$f":"IF('1 Identificação e Parâmetros'!$I$14=2,0,D11*(1+'1 Identificação e Parâmetros'!$K$13+'9 Dados_Exerc_Ferramenta'!K8))","v":{"v":102032.94201166384,"d":"102,033"}}]
[null,null,"6 Energia elétrica",null,{"$f":"IF('1 Identificação e Parâmetros'!$I$14=2,0,D12*(1+'1 Identificação e Parâmetros'!$K$13))","v":0}]
[null,null,"7 Material de consumo",null,{"$f":"IF('1 Identificação e Parâmetros'!$I$14=2,0,D13*(1+'1 Identificação e Parâmetros'!$K$13))","v":0}]
[null,null,"8 Despesas com a cobrança e arrecadação de taxas e tarifas",{"$f":"'9 Dados_Exerc_Ferramenta'!$C$15*'9 Dados_Exerc_Ferramenta'!$G$34*12","v":{"v":141590.4,"d":"141,590"}},{"$f":"IF('1 Identificação e Parâmetros'!$I$14=2,0,D14*(1+'1 Identificação e Parâmetros'!$K$13))","v":{"v":151395.91176974442,"d":"151,396"}}]
[null,null,"9 Despesas diversas ",{"$f":"'9 Dados_Exerc_Ferramenta'!H10+'9 Dados_Exerc_Ferramenta'!H22","v":{"v":29200,"d":"29,200"}},{"$f":"IF('1 Identificação e Parâmetros'!$I$14=2,0,D15*(1+'1 Identificação e Parâmetros'!$K$13))","v":{"v":31222.177659477886,"d":"31,222"}}]
[null,null,"10 Despesas extraordinárias ou eventuais",null,{"$f":"IF('1 Identificação e Parâmetros'!$I$14=2,0,D16*(1+'1 Identificação e Parâmetros'!$K$13))","v":0}]
[null,null,"11 Provisões de despesas contingentes — cíveis e trabalhistas",null,{"$f":"IF('1 Identificação e Parâmetros'!$I$14=2,0,D17*(1+'1 Identificação e Parâmetros'!$K$13))","v":0}]
[null,null,"Subtotal — Despesas administrativas e operacionais (A)",{"$f":"SUM(D6:D17)","v":{"v":854683,"d":"854,683"}},{"$f":"SUM(E6:E17)","v":{"v":928335.0928402581,"d":"928,335"}}]
[null,"Despesas indiretas (se não houver informações nos itens anteriores)",null,{"$f":"D18*F19","v":{"v":85468.3,"d":"85,468"}},{"$f":"IF('1 Identificação e Parâmetros'!$I$14=2,0,E18*F19)","v":{"v":92833.50928402581,"d":"92,834"}},{"$f":"'1 Identificação e Parâmetros'!K11","v":{"v":0.1,"d":"10%"}}]
[null,"Depreciação e exaustão de ativos imobilizados (B)",null,{"$f":"'9 Dados_Exerc_Ferramenta'!D40+'9 Dados_Exerc_Ferramenta'!D47","v":{"v":105400,"d":"105,400"}},{"$f":"IF('1 Identificação e Parâmetros'!$I$14=2,0,'9 Dados_Exerc_Ferramenta'!D40-'9 Dados_Exerc_Ferramenta'!D39+'9 Dados_Exerc_Ferramenta'!D41+'9 Dados_Exerc_Ferramenta'!D47)","v":{"v":110150,"d":"110,150"}}]
[null,"Despesas tributárias","PIS/PASEP e outros tributos sobre a receita (C) ",{"$f":"SUM(D18,D19,D20)/0.99*0.01","v":{"v":10561.124242424243,"d":"10,561"}},{"$f":"IF('1 Identificação e Parâmetros'!$I$14=2,0,SUM(E18,E19,E20)/0.99*0.01)","v":{"v":11427.460627518021,"d":"11,427"}}]
[null,"Despesas financeiras","Despesas de juros e encargos de empréstimos (D)"]
[null,"Custo Contábil Total do Serviço (A+B+C+D)  (E)",null,{"$f":"D18+D19+D20+D21","v":{"v":1056112.4242424243,"d":"1,056,112"}},{"$f":"E18+E19+E20+E21","v":{"v":1142746.0627518022,"d":"1,142,746"}}]
[null,"Custo e ajustes regulatórios","Remuneração dos investimentos em operação — capital próprio (F)",{"$f":"'9 Dados_Exerc_Ferramenta'!F48*'1 Identificação e Parâmetros'!$K$15-D22","v":{"v":43505.25,"d":"43,505"}},{"$f":"'9 Dados_Exerc_Ferramenta'!G48*'1 Identificação e Parâmetros'!$K$15-D22","v":{"v":41391.262500000004,"d":"41,391"}}]
[null,null,"Acréscimos regulatórios (G)  ",{"$f":"(D23+D24)*'9 Dados_Exerc_Ferramenta'!G30+(D23+D24)*'9 Dados_Exerc_Ferramenta'!G31","v":{"v":60478.97208333334,"d":"60,479"}},{"$f":"IF('1 Identificação e Parâmetros'!$I$14=2,0,D25/D23*E23)","v":{"v":65440.10433082554,"d":"65,440"}}]
[null,null,"Deduções regulatórias (H)",null,{"$f":"IF('1 Identificação e Parâmetros'!$I$14=2,0,D26/D23*E23)","v":0}]
[null,null,"Despesas com a regulação dos serviços (I)",null,{"$f":"IF('1 Identificação e Parâmetros'!$I$14=2,0,D27/D23*E23)","v":0}]
[null,"Custo Regulatório Total do Serviço (E+F+G+H+I)  (J)",null,{"$f":"SUM(D23:D27)","v":{"v":1160096.6463257577,"d":"1,160,097"}},{"$f":"IF('1 Identificação e Parâmetros'!$I$14=2,D28*(1+'1 Identificação e Parâmetros'!$K$13),SUM(E23:E27))","v":{"v":1249577.4295826277,"d":"1,249,577"}}]
[]
[null,"Valores Básicos de Cálculo das Taxas ou Tarifas de Manejo de Resíduos (VBC)"]
[null,"Opção 1 ","VBC — Custo médio unitário por tonelada coletada (R$/ton)",{"$f":"D28/D32","v":{"v":442.9319754497753,"d":"442.93"}},{"$f":"E28/E32","v":{"v":468.66039712720846,"d":"468.66"}}]
[null,null,"Quantidade total de resíduos coletados (ton)",{"$f":"'3 Dados-Complementares'!F52","v":{"v":2619.1305,"d":"2,619"}},{"$f":"'3 Dados-Complementares'!G52","v":{"v":2666.274849,"d":"2,666"}}]
[null,"Opção 2","VBC — Custo médio anual por domicílio (R$/dom)",{"$f":"D28/D34","v":{"v":344.21168629669694,"d":"344.21"}},{"$f":"E28/E34","v":{"v":363.4937657431853,"d":"363.49"}}]
[null,null,"Quantidade total de domicílios com serviço à disposição (domicílio)",{"$f":"'4 Dados Cadastrais-USUÁRIOS'!C11","v":{"v":3370.3,"d":"3,370"}},{"$f":"'4 Dados Cadastrais-USUÁRIOS'!D11","v":{"v":3437.686,"d":"3,438"}}]
[null,"Opção 3","VBC — Custo médio mensal por domicílio (R$/dom)",{"$f":"D28/D36/12","v":{"v":28.68430719139141,"d":"28.68"}},{"$f":"E28/E36/12","v":{"v":30.29114714526544,"d":"30.29"}}]
[null,null,"Quantidade total de domicílios com serviço à disposição (domicílio)",{"$f":"'4 Dados Cadastrais-USUÁRIOS'!C11","v":{"v":3370.3,"d":"3,370"}},{"$f":"'4 Dados Cadastrais-USUÁRIOS'!D11","v":{"v":3437.686,"d":"3,438"}}]
[null,"Opção 4","VBC — Custo médio unitário por m³ de água consumida (R$/m³)",{"$f":"D28/D38","v":{"v":1.6956240704270784,"d":"1.70"}},{"$f":"E28/E38","v":{"v":1.8451460190009403,"d":"1.85"}}]
[null,null,"Volume total de água consumido ou faturado no ano (m³)",{"$f":"'4 Dados Cadastrais-USUÁRIOS'!D20","v":{"v":684170.9,"d":"684,171"}},{"$f":"'4 Dados Cadastrais-USUÁRIOS'!F20","v":{"v":677224.1420000001,"d":"677,224"}}]
[null,"Opção 5","VBC — Custo médio unitário por m2 de área construida (R$/m2)",{"$f":"D28/D40","v":{"v":3.4421168629669694,"d":"3.44"}},{"$f":"E28/E40","v":{"v":3.634937657431853,"d":"3.63"}}]
[null,null,"Área total construída dos domicílios usuários do serviço (m2)",{"$f":"'4 Dados Cadastrais-USUÁRIOS'!D29","v":{"v":337030,"d":"337,030"}},{"$f":"'4 Dados Cadastrais-USUÁRIOS'!F29","v":{"v":343768.60000000003,"d":"343,769"}}]

{"sheet":"6a Tabelas-Taxas_Tarifas","index":7,"n_rows":144,"n_cols":10,"rows_kept":144,"merged":[[1,0,1,8],[2,2,2,3],[3,0,8,0],[3,1,8,1],[3,2,5,3],[3,5,5,5],[3,7,17,7],[6,2,6,3],[6,5,8,5],[7,2,7,3],[8,2,8,3],[9,0,11,0],[9,1,11,1],[9,2,9,3],[9,5,11,5],[10,2,10,3],[11,2,11,3],[12,0,14,0],[12,1,14,1],[12,2,12,3],[12,5,14,5],[13,2,13,3],[14,2,14,3],[15,0,17,0],[15,1,17,1],[15,2,15,3],[15,5,17,5],[16,2,16,3],[17,2,17,3],[21,0,21,7],[22,0,23,0],[22,1,23,1],[22,2,23,3],[22,4,23,4],[22,5,23,5],[22,6,23,6],[22,7,23,7],[24,0,27,0],[24,1,27,1],[24,2,24,3],[24,5,36,5],[24,6,36,6],[25,2,25,3],[26,2,26,3],[27,2,27,3],[28,0,30,0],[28,1,30,1],[28,2,28,3],[29,2,29,3],[30,2,30,3],[31,0,33,0],[31,1,33,1],[31,2,31,3],[32,2,32,3],[33,2,33,3],[34,0,36,0],[34,1,36,1],[34,2,34,3],[35,2,35,3],[36,2,36,3],[40,1,41,7],[40,8,40,9],[41,8,41,9],[42,1,42,7],[43,1,43,7],[44,1,45,1],[44,2,44,3],[44,4,45,5],[44,6,44,9],[45,6,45,7],[45,8,45,9],[46,1,53,1],[46,2,53,2],[46,3,53,3],[46,4,46,5],[48,4,48,5],[54,1,54,5],[55,1,55,5],[56,1,57,1],[56,2,56,3],[56,4,57,5],[57,6,57,7],[57,8,57,9],[58,1,65,1],[58,2,65,2],[58,3,65,3],[58,4,58,5],[60,4,60,5],[66,1,66,3],[66,4,66,5],[66,6,66,7],[67,1,67,5],[68,1,70,1],[68,2,68,3],[68,4,69,5],[69,2,70,2],[69,3,70,3],[69,6,69,7],[69,8,69,9],[70,4,70,5],[71,1,76,1],[71,2,76,2],[71,3,76,3],[72,4,72,5],[80,1,80,5],[81,1,82,1],[81,2,82,2],[81,3,82,3],[81,4,82,4],[81,5,82,5],[118,0,118,9],[119,0,123,9],[124,0,126,9],[127,0,128,9],[129,0,133,9],[134,0,137,9],[138,0,140,9],[141,0,142,9],[143,0,147,9]]}
[null,"RETORNAR \nAO SUMÁRIO"]
["Tabela 1 — Estrutura referencial de cálculo da TMRS com base \nna categoria dos imóveis e na frequência da coleta (Opção 1 ou 2)"]
["Classe","Categoria","Subcategoria",null,"Frequência da coleta","Unidade","Fator de cálculo","VBCtmrs R$/domic","Taxa anual R$/Domic(1)"]
[1,"Residencial","Social de baixa renda",null,"1 x semana","Domicílio",0.4,{"$f":"IF('1 Identificação e Parâmetros'!I19=\"Versão Completa\",'5.1 CalcCustoVBC-Completo'!$E$33*'1 Identificação e Parâmetros'!$K$12,'5.2 CalcCustoVBC-Simplificado'!$E$33*'1 Identificação e Parâmetros'!$K$12)","v":{"v":362.3126609231184,"d":"362.31"}},{"$f":"G4*$H$4","v":{"v":144.92506436924737,"d":"R$ 144.93"}}]
[{"$nulls":4},"3 x semana",null,0.6,null,{"$f":"G5*$H$4","v":{"v":217.38759655387105,"d":"R$ 217.39"}}]
[{"$nulls":4},"6 x semana",null,0.8,null,{"v":289.85012873849473,"d":"R$ 289.85"}]
[null,null,"Normal",null,"1 x semana","Domicílio",0.8,null,{"v":289.85012873849473,"d":"R$ 289.85"}]
[{"$nulls":4},"3 x semana",null,1,null,{"v":362.3126609231184,"d":"R$ 362.31"}]
[{"$nulls":4},"6 x semana",null,1.2,null,{"v":434.7751931077421,"d":"R$ 434.78"}]
[2,"Comercial e serviços","Única",null,"1 x semana","Domicílio",1,null,{"v":362.3126609231184,"d":"R$ 362.31"}]
[{"$nulls":4},"3 x semana",null,1.2,null,{"v":434.7751931077421,"d":"R$ 434.78"}]
[{"$nulls":4},"6 x semana",null,1.5,null,{"v":543.4689913846776,"d":"R$ 543.47"}]
[3,"Industrial","Única",null,"1 x semana","Domicílio",1,null,{"v":362.3126609231184,"d":"R$ 362.31"}]
[{"$nulls":4},"3 x semana",null,1.2,null,{"v":434.7751931077421,"d":"R$ 434.78"}]
[{"$nulls":4},"6 x semana",null,1.5,null,{"v":543.4689913846776,"d":"R$ 543.47"}]
[4,"Pública e filantrópica","Única",null,"1 x semana","Domicílio",0.8,null,{"v":289.85012873849473,"d":"R$ 289.85"}]
[{"$nulls":4},"3 x semana",null,1,null,{"v":362.3126609231184,"d":"R$ 362.31"}]
[{"$nulls":4},"6 x semana",null,1.2,null,{"v":434.7751931077421,"d":"R$ 434.78"}]
["(1) Lançamento anual da TMRS — a cobrança pode ser em parcela única ou mensal"]
[]
["      RETORNAR AO SUMÁRIO"]
["Tabela 2 — Estrutura referencial de cálculo da TMRS com base na categoria e no padrão dos imóveis \n(Opção 1 ou 2)"]
["Classe","Categoria","Padrão/Área Construída",null,"Fator Padrão Porte/área  ","Unidade","VBCtmrs R$/domic ","Taxa anual(1) R$/domic"]
[{"$nulls":7},"3 x sem"]
[1,"Residencial","Social de baixa renda",null,0.5,"Domicílio",{"$f":"IF('1 Identificação e Parâmetros'!I19=\"Versão Completa\",'5.1 CalcCustoVBC-Completo'!$E$33*'1 Identificação e Parâmetros'!$K$12,'5.2 CalcCustoVBC-Simplificado'!$E$33*'1 Identificação e Parâmetros'!$K$12)","v":{"v":362.3126609231184,"d":"362.31"}},{"$f":"$G$25*E25","v":{"v":181.1563304615592,"d":"181.16"}}]
[null,null,"Padrão popular — até 70 m²",null,0.8,null,null,{"$f":"$G$25*E26","v":{"v":289.85012873849473,"d":"289.85"}}]
[null,null,"Padrão médio — de 71 a 200 m²",null,1,null,null,{"v":362.3126609231184,"d":"362.31"}]
[null,null,"Alto padrão — acima de 201 m²",null,1.45,null,null,{"v":525.3533583385217,"d":"525.35"}]
[2,"Comercial e serviços","Pequeno porte — até 100 m²",null,1.2,null,null,{"v":434.7751931077421,"d":"434.78"}]
[null,null,"Médio porte — entre 100 e 300 m²",null,1.55,null,null,{"v":561.5846244308335,"d":"561.58"}]
[null,null,"Grande porte — acima de 300 m²",null,{"$f":"1.5*1.5","v":2.25},null,null,{"v":815.2034870770165,"d":"815.20"}]
[3,"Industrial","Pequeno porte — até 200 m²",null,1.5,null,null,{"v":543.4689913846776,"d":"543.47"}]
[null,null,"Médio porte — entre 200 e 500 m²",null,2.5,null,null,{"v":905.7816523077961,"d":"905.78"}]
[null,null,"Grande porte — acima de 500 m²",null,{"v":3,"d":"3.0"},null,null,{"v":1086.9379827693551,"d":"1,086.94"}]
[4,"Pública e filantrópica","Pequeno porte — até 200 m²",null,1,null,null,{"v":362.3126609231184,"d":"362.31"}]
[null,null,"Médio porte — entre 200 e 500 m²",null,1.2,null,null,{"v":434.7751931077421,"d":"434.78"}]
[null,null,"Grande porte — acima de 500 m²",null,1.8,null,null,{"v":652.1627896616131,"d":"652.16"}]
["(1) Lançamento anual da TMRS — a cobrança pode ser em parcela única ou mensal"]
[]
[null,"RETORNAR AO SUMÁRIO"]
[null,"Tabela 3 — Estrutura referencial de cálculo da TMRS com base na categoria dos imóveis, \nna frequência da coleta e no consumo de água (Opção 3)",{"$nulls":6},"Valor Básico de Cálculo (VBC)"]
[{"$nulls":8},{"$f":"'5.1 CalcCustoVBC-Completo'!E5","v":2022}]
[null,"Tabela 3.1 – Categoria Residencial e Pública ",{"$nulls":6},"Anual","Mensal"]
[null,"Fatores de cálculo cumulativos",{"$nulls":6},{"$f":"IF('1 Identificação e Parâmetros'!I19=\"Versão Completa\",'5.1 CalcCustoVBC-Completo'!$E$33*'1 Identificação e Parâmetros'!$K$12,'5.2 CalcCustoVBC-Simplificado'!$E$33*'1 Identificação e Parâmetros'!$K$12)","v":{"v":362.3126609231184,"d":"R$362.31"}},{"$f":"IF('1 Identificação e Parâmetros'!I19=\"Versão Completa\",'5.1 CalcCustoVBC-Completo'!$E$35*'1 Identificação e Parâmetros'!$K$12,'5.2 CalcCustoVBC-Simplificado'!$E$35*'1 Identificação e Parâmetros'!$K$12)","v":{"v":30.1927217435932,"d":"R$30.19"}}]
[null,"Categoria de uso (a)","Frequência da coleta",null,"Consumo médio mensal de água (c)",null,"Simulação da taxa ou tarifa para domicílio no limite superior de cada faixa"]
[null,null,"Alternada (b1)","Diária (b2)",null,null,"Coleta em dias alternados",null,"Coleta diária"]
[null,1,1,1.3,"Fator fixo",null,"Anual","Mensal","Anual","Mensal"]
[{"$nulls":4},"Até 5 m³",0.35,{"$f":"$I$44*F48","v":{"v":126.80943132309143,"d":"R$126.81"}},{"$f":"$J$44*F48","v":{"v":10.56745261025762,"d":"R$10.57"}},{"$f":"G48*$D$47","v":{"v":164.85226072001888,"d":"R$164.85"}},{"$f":"H48*$D$47","v":{"v":13.737688393334906,"d":"R$13.74"}}]
[{"$nulls":4},"Fator variável por m³"]
[{"$nulls":4},"> 5 a 15m³",0.06,{"$f":"$I$44*(F48+10*F50)","v":{"v":344.19702787696247,"d":"R$344.20"}},{"$f":"$J$44*(F48+10*F50)","v":{"v":28.68308565641354,"d":"R$28.68"}},{"$f":"G50*$D$47","v":{"v":447.4561362400512,"d":"R$447.46"}},{"v":37.2880113533376,"d":"R$37.29"}]
[{"$nulls":4},"> 15 a 25m³",0.05,{"$f":"$I$44*(F48+10*F50+10*F51)","v":{"v":525.3533583385217,"d":"R$525.35"}},{"$f":"$J$44*(F48+10*F50+10*F51)","v":{"v":43.77944652821014,"d":"R$43.78"}},{"v":682.9593658400782,"d":"R$682.96"},{"v":56.91328048667318,"d":"R$56.91"}]
[{"$nulls":4},"> 25 a 35 m³",0.035,{"$f":"$I$44*(F48+10*F50+10*F51+10*F52)","v":{"v":652.1627896616131,"d":"R$652.16"}},{"$f":"$J$44*(F48+10*F50+10*F51+10*F52)","v":{"v":54.34689913846776,"d":"R$54.35"}},{"v":847.8116265600971,"d":"R$847.81"},{"v":70.6509688800081,"d":"R$70.65"}]
[{"$nulls":4},"> 35 a 50 m³",0.03,{"$f":"$I$44*(F48+10*F50+10*F51+10*F52+15*F53)","v":{"v":815.2034870770165,"d":"R$815.20"}},{"$f":"$J$44*(F48+10*F50+10*F51+10*F52+15*F53)","v":{"v":67.9336239230847,"d":"R$67.93"}},{"v":1059.7645332001214,"d":"R$1,059.76"},{"v":88.31371110001011,"d":"R$88.31"}]
[{"$nulls":4},"> 50 m³ até o limite de 100 m³",0.025,{"$f":"$I$44*(F48+10*F50+10*F51+10*F52+15*F53+50*F54)","v":{"v":1268.0943132309144,"d":"R$1,268.09"}},{"$f":"$J$44*(F48+10*F50+10*F51+10*F52+15*F53+50*F54)","v":{"v":105.6745261025762,"d":"R$105.67"}},{"v":1648.5226072001888,"d":"R$1,648.52"},{"v":137.37688393334906,"d":"R$137.38"}]
[null," Tabela 3.2 – Categoria Comercial (inclusive prestadores de serviços)"]
[null,"Fatores de cálculo cumulativos"]
[null,"Categoria de uso (a)","Frequência da Coleta",null,"Consumo médio mensal de água (c)"]
[null,null,"Alternada (b1)","Diária (b2)",null,null,"Coleta em dias alternados",null,"Coleta diária"]
[null,1.5,1,1.3,"Fator fixo",null,"Anual","Mensal","Anual","Mensal"]
[{"$nulls":4},"Até 5 m³",0.35,{"$f":"$I$44*F60*$B$59","v":{"v":190.21414698463715,"d":"R$190.21"}},{"$f":"$J$44*F60*$B$59","v":{"v":15.85117891538643,"d":"R$15.85"}},{"$f":"G60*$D$59","v":{"v":247.2783910800283,"d":"R$247.28"}},{"$f":"H60*$D$59","v":{"v":20.60653259000236,"d":"R$20.61"}}]
[{"$nulls":4},"Fator variável por m³"]
[{"$nulls":4},"> 5 a 15m³",0.06,{"$f":"$I$44*(F60+10*F62)*$B$59","v":{"v":516.2955418154437,"d":"R$516.30"}},{"$f":"$J$44*(F60+10*F62)*$B$59","v":{"v":43.02462848462031,"d":"R$43.02"}},{"$f":"G62*$D$59","v":{"v":671.1842043600768,"d":"R$671.18"}},{"v":55.9320170300064,"d":"R$55.93"}]
[{"$nulls":4},"> 15 a 25m³",0.05,{"$f":"$I$44*(F60+10*F62+10*F63)*$B$59","v":{"v":788.0300375077826,"d":"R$788.03"}},{"$f":"$J$44*(F60+10*F62+10*F63)*$B$59","v":{"v":65.6691697923152,"d":"R$65.67"}},{"v":1024.4390487601174,"d":"R$1,024.44"},{"v":85.36992073000977,"d":"R$85.37"}]
[{"$nulls":4},"> 25 a 35 m³",0.04,{"$f":"$I$44*(F60+10*F62+10*F63+10*F64)*$B$59","v":{"v":1005.4176340616536,"d":"R$1,005.42"}},{"$f":"$J$44*(F60+10*F62+10*F63+10*F64)*$B$59","v":{"v":83.78480283847114,"d":"R$83.78"}},{"v":1307.0429242801497,"d":"R$1,307.04"},{"v":108.92024369001248,"d":"R$108.92"}]
[{"$nulls":4},"> 35 a 50 m³",0.035,{"$f":"$I$44*(F60+10*F62+10*F63+10*F64+15*F65)*$B$59","v":{"v":1290.7388545386093,"d":"R$1,290.74"}},{"$f":"$J$44*(F60+10*F62+10*F63+10*F64+15*F65)*$B$59","v":{"v":107.56157121155077,"d":"R$107.56"}},{"v":1677.960510900192,"d":"R$1,677.96"},{"v":139.830042575016,"d":"R$139.83"}]
[{"$nulls":4},"> 50 m³ até o limite de 150 m³",0.03,{"$f":"$I$44*(F60+10*F62+10*F63+10*F64+15*F65+100*F66)*$B$59","v":{"v":2921.145828692642,"d":"R$2,921.15"}},{"$f":"$J$44*(F60+10*F62+10*F63+10*F64+15*F65+100*F66)*$B$59","v":{"v":243.42881905772018,"d":"R$243.43"}},{"v":3797.489577300435,"d":"R$3,797.49"},{"v":316.4574647750362,"d":"R$316.46"}]
[null,"Tabela 3.3 – Categoria Industrial",null,null," ",null," "]
[null,"Fatores de cálculo cumulativos"]
[null,"Categoria de uso (a)","Frequência da Coleta",null,"Consumo médio mensal de água (c)"]
[null,null,"Alternada (b1)","Diária (b2)",null,null,"Coleta em dias alternados",null,"Coleta diária"]
[{"$nulls":4},"Fator fixo",null,"Anual","Mensal","Anual","Mensal"]
[null,1.5,1,1.3,"Até 5 m³",0.35,{"$f":"$I$44*F72*$B$72","v":{"v":190.21414698463715,"d":"R$190.21"}},{"$f":"$J$44*F72*$B$72","v":{"v":15.85117891538643,"d":"R$15.85"}},{"$f":"G72*$D$72","v":{"v":247.2783910800283,"d":"R$247.28"}},{"$f":"H72*$D$72","v":{"v":20.60653259000236,"d":"R$20.61"}}]
[{"$nulls":4},"Fator variável por m³"]
[{"$nulls":4},"> 5 a 30 m³",0.05,{"$f":"$I$44*(F72+25*F74)*$B$72","v":{"v":869.5503862154842,"d":"R$869.55"}},{"$f":"$J$44*(F72+25*F74)*$B$72","v":{"v":72.46253218462368,"d":"R$72.46"}},{"$f":"G74*$D$72","v":{"v":1130.4155020801295,"d":"R$1,130.42"}},{"v":94.2012918400108,"d":"R$94.20"}]
[{"$nulls":4},"> 30 a 100m³",0.03,{"$f":"$I$44*(F72+25*F74+70*F75)*$B$72","v":{"v":2010.8352681233073,"d":"R$2,010.84"}},{"$f":"$J$44*(F72+25*F74+70*F75)*$B$72","v":{"v":167.56960567694227,"d":"R$167.57"}},{"v":2614.0858485602994,"d":"R$2,614.09"},{"v":217.84048738002497,"d":"R$217.84"}]
[{"$nulls":4},"> 100 a 500 m³",0.015,{"$f":"$I$44*(F72+25*F74+70*F75+400*F76)*$B$72","v":{"v":5271.649216431373,"d":"R$5,271.65"}},{"$f":"$J$44*(F72+25*F74+70*F75+400*F76)*$B$72","v":{"v":439.30410136928106,"d":"R$439.30"}},{"v":6853.143981360785,"d":"R$6,853.14"},{"v":571.0953317800654,"d":"R$571.10"}]
[{"$nulls":4},"> 500 m³ até o limite de 1000 m³",0.005,{"$f":"$I$44*(F72+25*F74+70*F75+400*F76+500*F77)*$B$72","v":{"v":6630.321694893068,"d":"R$6,630.32"}},{"$f":"$J$44*(F72+25*F74+70*F75+400*F76+500*F77)*$B$72","v":{"v":552.5268079077556,"d":"R$552.53"}},{"v":8619.418203360989,"d":"R$8,619.42"},{"v":718.2848502800823,"d":"R$718.28"}]
[null,"Fórmula de cálculo da TMRS =  VBCTMRS x (Fator a x Fator b1,2 x Fator c)"]
[]
[null,"RETORNAR\n AO SUMÁRIO"]
[null,"Tabela 4 — Estrutura referencial de cálculo da TMRS com base na categoria dos imóveis e no volume de água consumida (Opção 4)"]
[null,"Categorias e faixas de consumo mensal de água","Fatores de cálculo dos valores unitários na faixa","Preço unitário da taxa/tarifa por faixa                         R$/m³ de água","VBC — Valor Básico de Cálculo R$/m³ de água","Simulação de taxa/tarifa individual (média da faixa)                         R$ / Domicílio / mês"]
[]
[null,"Residencial normal",null,null,{"$f":"IF('1 Identificação e Parâmetros'!I19=\"Versão Completa\",'5.1 CalcCustoVBC-Completo'!$E$37*'1 Identificação e Parâmetros'!$K$12,'5.2 CalcCustoVBC-Simplificado'!$E$37*'1 Identificação e Parâmetros'!$K$12)","v":{"v":1.8391505630615146,"d":"R$1.84"}}]
[null,"Até 10 m³ — Taxa Básica",{"v":8,"d":"8.0"},{"$f":"C85*$E$84","v":{"v":14.713204504492117,"d":"R$14.71"}},null,{"$f":"D85","v":{"v":14.713204504492117,"d":"R$14.71"}}]
[null,"De 10 a 20 m³",0.7,{"v":1.28740539414306,"d":"R$1.29"},null,{"$f":"F85+5*D86","v":{"v":21.150231475207416,"d":"R$21.15"}}]
[null,"De 20 a 30 m³",0.6,{"v":1.1034903378369088,"d":"R$1.10"},null,{"$f":"F85+10*D86+5*D87","v":{"v":33.10471013510726,"d":"R$33.10"}}]
[null,"De 30 a 40 m³",0.5,{"v":0.9195752815307573,"d":"R$0.92"},null,{"$f":"F85+10*D86+10*D87+5*D88","v":{"v":43.220038231945594,"d":"R$43.22"}}]
[null,"De 40 a 100 m³",0.3,{"v":0.5517451689184544,"d":"R$0.55"},null,{"$f":"F85+10*D86+10*D87+10*D88+30*D89","v":{"v":64.37026970715301,"d":"R$64.37"}}]
[null,"Acima de 100 m³",{"v":0,"d":"0.0"},{"v":0,"d":"R$0.00"},null,{"$f":"F85+10*D86+10*D87+10*D88+70*D89","v":{"v":86.44007646389119,"d":"R$86.44"}}]
[null,"Residencial social"]
[null,"Até 10 m³ — Taxa Básica",{"v":4,"d":"4.00"},{"$f":"C92*$E$84","v":{"v":7.356602252246058,"d":"R$7.36"}},null,{"$f":"D92","v":{"v":7.356602252246058,"d":"R$7.36"}}]
[null,"De 10 a 15 m³",0.35,{"v":0.64370269707153,"d":"R$0.64"},null,{"$f":"F92+2.5*D93","v":{"v":8.965858994924883,"d":"R$8.97"}}]
[null,"De 15 a 20 m³",0.35,{"v":0.64370269707153,"d":"R$0.64"},null,{"$f":"F92+5*D93+2.5*D94","v":{"v":12.184372480282534,"d":"R$12.18"}}]
[null,"De 20 a 30 m³",{"v":0.3,"d":"0.30"},{"v":0.5517451689184544,"d":"R$0.55"},null,{"$f":"F92+5*D93+5*D94+5*D95","v":{"v":16.55235506755363,"d":"R$16.55"}}]
[null,"Comercial"]
[null,"Até 10 m³ — Taxa Básica",{"v":12,"d":"12.0"},{"v":22.069806756738174,"d":"R$22.07"},null,{"$f":"D97","v":{"v":22.069806756738174,"d":"R$22.07"}}]
[null,"De 10 a 20 m³",0.9,{"v":1.6552355067553632,"d":"R$1.66"},null,{"$f":"F97+5*D98","v":{"v":30.34598429051499,"d":"R$30.35"}}]
[null,"De 20 a 30 m³",0.8,{"v":1.4713204504492117,"d":"R$1.47"},null,{"$f":"F97+10*D98+5*D99","v":{"v":45.978764076537864,"d":"R$45.98"}}]
[null,"De 30 a 50 m³",0.7,{"v":1.28740539414306,"d":"R$1.29"},null,{"$f":"F97+10*D98+10*D99+10*D100","v":{"v":66.20942027021452,"d":"R$66.21"}}]
[null,"De 50 a 150 m³",0.5,{"v":0.9195752815307573,"d":"R$0.92"},null,{"$f":"F97+10*D98+10*D99+20*D100+50*D101","v":{"v":125.06223828818298,"d":"R$125.06"}}]
[null,"Acima de 150 m³",{"v":0,"d":"0.0"},{"v":0,"d":"R$0.00"},null,{"$f":"F97+10*D98+10*D99+20*D100+100*D101","v":{"v":171.04100236472084,"d":"R$171.04"}}]
[null,"Industrial"]
[null,"Até 10 m³ — Taxa Básica",{"v":15,"d":"15.0"},{"v":27.587258445922718,"d":"R$27.59"},null,{"$f":"D104","v":{"v":27.587258445922718,"d":"R$27.59"}}]
[null,"De 10 a 30 m³",{"v":1,"d":"1.0"},{"v":1.8391505630615146,"d":"R$1.84"},null,{"$f":"F104+10*D105","v":{"v":45.978764076537864,"d":"R$45.98"}}]
[null,"De 30 a 100 m³",0.9,{"v":1.6552355067553632,"d":"R$1.66"},null,{"$f":"F104+20*D105+35*D106","v":{"v":122.30351244359073,"d":"R$122.30"}}]
[null,"De 100 a 500 m³",0.7,{"v":1.28740539414306,"d":"R$1.29"},null,{"$f":"F104+20*D105+70*D106+200*D107","v":{"v":437.71783400864047,"d":"R$437.72"}}]
[null,"De 500 a 1000 m³",0.5,{"v":0.9195752815307573,"d":"R$0.92"},null,{"$f":"F104+20*D105+70*D106+400*D107+250*D108","v":{"v":925.0927332199418,"d":"R$925.09"}}]
[null,"Acima 1000 m³",{"v":0,"d":"0.0"},{"v":0,"d":"R$0.00"},null,{"$f":"F104+20*D105+70*D106+400*D107+500*D108","v":{"v":1154.9865536026311,"d":"R$1,154.99"}}]
[null,"Pública"]
[null,"Até 10 m³ — Taxa Básica",{"v":8,"d":"8.0"},{"$f":"C111*$E$84","v":{"v":14.713204504492117,"d":"R$14.71"}},null,{"$f":"D111","v":{"v":14.713204504492117,"d":"R$14.71"}}]
[null,"De 10 a 20 m³",0.7,{"v":1.28740539414306,"d":"R$1.29"},null,{"$f":"F111+5*D112","v":{"v":21.150231475207416,"d":"R$21.15"}}]
[null,"De 20 a 30 m³",0.6,{"v":1.1034903378369088,"d":"R$1.10"},null,{"$f":"F111+10*D112+5*D113","v":{"v":33.10471013510726,"d":"R$33.10"}}]
[null,"De 30 a 40 m³",0.5,{"v":0.9195752815307573,"d":"R$0.92"},null,{"$f":"F111+10*D112+10*D113+5*D114","v":{"v":43.220038231945594,"d":"R$43.22"}}]
[null,"De 40 a 100 m³",0.3,{"v":0.5517451689184544,"d":"R$0.55"},null,{"$f":"F111+10*D112+10*D113+10*D114+30*D115","v":{"v":64.37026970715301,"d":"R$64.37"}}]
[null,"Acima de 100 m³",{"v":0,"d":"0.0"},{"v":0,"d":"R$0.00"},null,{"$f":"F111+10*D112+10*D113+10*D114+70*D115","v":{"v":86.44007646389119,"d":"R$86.44"}}]
[]
["      RETORNAR AO SUMÁRIO"]
["5. Hipóteses de cobrança em regime de tarifa"]
["1.Quando o serviço for prestado mediante concessão comum, incluindo todas as atividades de coleta até a destinação final adequada, a cobrança do serviço poderá ser feita diretamente pelo prestador, em regime de tarifa, por meio de documento de cobrança específico (conta/fatura). Neste caso, o prestador não receberá qualquer espécie de contraprestação do Município, exceto na forma de investimento, sendo a tarifa e outras receitas acessórias a fonte exclusiva de remuneração do serviço prestado."]
[]
[]
[]
[]
["2. No caso de concessão patrocinada (PPP), e desde que o prestador execute todas as etapas do serviço, também poderá ser adotado regime de tarifa. Nesse caso, a remuneração do serviço será coberta parcialmente pela tarifa e outras receitas acessórias e o restante será coberto por meio de contraprestação do Município, na forma pactuada no contrato."]
[]
[]
["3. Essas hipóteses também se aplicam quando houver prestação em regime de gestão associada, por meio de consórcio ou de convênio de cooperação, em que há delegação por meio de contrato de programa."]
[]
["4. Nesses casos, a cobrança somente poderá incidir sobre os usuários efetivos do serviço, condição esta que deverá ser estabelecida pela regulação legal da cobrança, mediante critérios objetivos de aferição, tais como: ser usuário ativo dos serviços de abastecimento de água, de esgotamento sanitário e/ou de energia elétrica; o imóvel, edificado ou não, estar sendo utilizado para qualquer atividade (moradia, comércio, serviço, indústria etc.); e/ou haver adesão contratual do usuário, ainda que a adesão seja compulsória nos termos da lei."]
[]
[]
[]
[]
["5. A jurisprudência existente não é conclusiva sobre a possibilidade de cobrança de tarifa desses serviços, quando houver prestação direta por órgão ou entidade municipal. No entanto, por interpretação isonômica com a cobrança de tarifas pela prestação direta dos serviços de abastecimento de água e de esgotamento sanitário, pode-se concluir que também nesse caso pode ser adotado o regime de cobrança de tarifa dos usuários efetivos do serviço."]
[]
[]
[]
["6. Os critérios de cálculo da tarifa podem ser iguais aos propostos para o cálculo da taxa ou outros definidos pela regulação, observando-se que, neste caso, se a legislação municipal não determinar o contrário, a regulação da tarifa poderá ser feita por decreto e/ou, complementarmente, por normas do ente regulador. "]
[]
[]
["7. Se houver prestação do serviço de abastecimento de água universalizada na área de cobertura do serviço de coleta de resíduos sólidos domiciliares ou equiparados, a tarifa ou taxa de manejo de resíduos poderá ser calculada com base no consumo de água, utilizando estrutura similar à daquele serviço."]
[]
["8. Para os imóveis, edificados ou não, que não sejam caracterizados como usuários efetivos dos serviços, somente poderá haver cobrança de taxa pela disposição e uso potencial desses serviços. Essa receita pertence ao Município ou à entidade pública prestadora do serviço, mas pode ser vinculada  para o pagamento de contraprestação ao prestador ou para realização de investimentos em infraestruturas do serviço, no caso de prestação em regime de concessão."]

{"sheet":"6b TabelasCalc-Tax_Tarif_ANA","index":8,"n_rows":174,"n_cols":11,"rows_kept":174,"merged":[[1,0,1,6],[2,0,2,6],[2,7,2,8],[4,5,9,5],[9,3,9,4],[12,0,12,7],[12,8,12,9],[14,1,16,1],[14,7,35,7],[15,4,16,4],[15,5,16,5],[17,1,21,1],[18,4,21,4],[18,5,21,5],[22,1,26,1],[23,4,26,4],[23,5,26,5],[27,1,31,1],[28,4,31,4],[28,5,31,5],[32,1,35,1],[33,4,35,4],[33,5,35,5],[36,1,36,2],[36,5,36,6],[39,0,39,7],[40,1,41,1],[40,2,41,2],[40,3,41,3],[40,4,41,4],[40,5,41,5],[40,6,40,7],[42,5,75,5],[78,0,78,6],[79,0,79,6],[80,1,81,1],[80,2,81,2],[80,3,81,3],[80,4,81,4],[80,5,81,5],[80,6,81,6],[80,7,80,8],[82,5,86,5],[87,3,87,4],[90,0,90,6],[91,1,92,1],[91,2,92,2],[91,3,92,3],[91,4,92,4],[91,5,92,5],[91,6,92,6],[91,7,91,8],[93,1,95,1],[93,6,115,6],[94,3,95,3],[96,1,100,1],[97,3,100,3],[101,1,105,1],[102,3,105,3],[106,1,110,1],[107,3,110,3],[111,1,114,1],[112,3,114,3],[115,1,115,2],[115,4,115,5],[118,0,118,6],[118,7,119,7],[119,0,119,6],[121,1,123,1],[121,6,143,6],[122,4,123,4],[122,5,123,5],[124,1,128,1],[125,4,128,4],[125,5,128,5],[129,1,133,1],[130,4,133,4],[130,5,133,5],[134,1,138,1],[135,4,138,4],[135,5,138,5],[139,1,142,1],[140,4,142,4],[140,5,142,5],[148,0,148,9],[149,0,153,9],[154,0,156,9],[157,0,158,9],[159,0,163,9],[164,0,167,9],[168,0,170,9],[171,0,172,9],[173,0,177,9]]}
[null,"RETORNAR \nAO SUMÁRIO"]
["I - Fator de Rateio: Consumo de Água (volume de água faturado)"]
["Tabela 1 — Estrutura referencial de cálculo linear da TMRSa, conforme o consumo de água ",{"$nulls":6},"Exemplos-TMRS Individuais",null,"Descritivos dos fatores componentes das fórmulas de cálculo"]
[null,"Categoria do Usuário","FTBi","FCI","VAFi mensal  (> ou = FTBi)","VUa (R$/m³)","Vol. Limite de incidência (m³)","Volume Faturado","Valor da TMRS R$/mês","Fórmula Geral: TMRS = TBD + VUa x (VAFi – FTBi) x FCI"]
[null,"Residencial social",3,0.5,"(Informado)",{"$f":"'5.1 CalcCustoVBC-Completo'!E37","v":{"v":1.8391505630615146,"d":"1.84"}},30,13,{"$f":"$F$5*C5+$F$5*(H5-C5)*D5","v":{"v":14.713204504492117,"d":"14.71"}},"TBD = VUa x FTBi"]
[null,"Residencial ",5,1,null,null,100,18,{"$f":"$F$5*C6+$F$5*(H6-C6)*D6","v":{"v":33.10471013510726,"d":"33.10"}},"TBD : Tarifa/Taxa básica mensal de disponibilidade dos serviços. (R$)"]
[null,"Comercial e serviços",10,1.2,null,null,300,55,{"$f":"$F$5*C7+$F$5*(H7-C7)*D7","v":{"v":117.70563603593693,"d":"117.71"}},"VUa : o valor unitário do custo regulatório com base no consumo de água (R$/m3)"]
[null,"Industrial",12,1.3,null,null,500,250,{"$f":"$F$5*C8+$F$5*(H8-C8)*D8","v":{"v":591.1029909679709,"d":"591.10"}},"FTBi: o Fator de cálculo da respectiva categoria/subcategoria do imóvel expresso em metros cúbicos (m3) e múltiplo de 1 m³."]
[null,"Pública e filantrópica",5,1,null,null,300,150,{"$f":"$F$5*C9+$F$5*(H9-C9)*D9","v":{"v":275.8725844592272,"d":"275.87"}},"VAFi: consumo de água faturado mensal do imóvel (economia), observado consumo mínimo faturado igual ou superior ao FTBi e o limite máximo da categoria, se for o caso. (m3)"]
[null,"Imóveis vazios, lotes e terrenos",10,"(NA)",null,null,"(NA)","(NA)",{"$f":"F5*C10","v":{"v":18.391505630615146,"d":"18.39"}},"FCI: Fator adimensional de rateio (FR) do custo do serviço, utilizado para o cálculo da TMRS."]
[null,"Lançamento mensal da TMRS — cobrança mensal da TMRS conforme o consumo de água do imóvel."]
[]
["Tabela 2 — Estrutura referencial de cálculo da TMRS conforme padrão do imóvel e consumo de água  ",{"$nulls":7},"Exemplos-TMRS Individuais"]
[null,"Categoria do Usuário","Padrão / Área Construída","FPI","FTBi","FCI","VAFi mensal (> ou = FTBi)","VUa R$/m3","Volume Faturado","Valor da TMRS R$/mês","Fórmula Geral: TMRS = TBD + VUa x (VAFi – FTBi) x FCI x FPI"]
[null,"Residencial social","Taxa/Tarifa de disponibilidade",null,3,null,"(Informado)",{"$f":"'5.1 CalcCustoVBC-Completo'!E37","v":{"v":1.8391505630615146,"d":"1.84"}},"(NA)",{"$f":"E15*$H$15","v":{"v":5.5174516891845435,"d":"5.52"}},"FPI: Fator do padrão do imóvel"]
[null,null,"Social de baixa renda",0.5,null,0.8,null,null,12,{"$f":"$H$15*$E$15+$H$15*(I16-$E$15)*$F$16*D16","v":{"v":12.138393716205996,"d":"12.14"}}]
[null,null,"Padrão popular(1) – até 60m²",0.8,{"$nulls":4},15,{"$f":"$H$15*$E$15+$H$15*(I17-$E$15)*$F$16*D17","v":{"v":19.642128013496976,"d":"19.64"}}]
[null,"Residencial normal ","Taxa/Tarifa de disponibilidade",null,5,{"$nulls":3},"(NA)",{"$f":"E18*$H$15","v":{"v":9.195752815307573,"d":"9.20"}}]
[null,null,"até 60m²",0.8,null,1,null,null,13,{"$f":"$H$15*$E$18+$H$15*(I19-$E$18)*$F$19*D19","v":{"v":20.966316418901265,"d":"20.97"}}]
[null,null,"de 61 a 100m²",0.9,{"$nulls":4},18,{"$f":"$H$15*$E$18+$H$15*(I20-$E$18)*$F$19*D20","v":{"v":30.713814403127294,"d":"30.71"}}]
[null,null,"De 100 a 250m²",1.1,{"$nulls":4},22,{"$f":"$H$15*$E$18+$H$15*(I21-$E$18)*$F$19*D21","v":{"v":43.5878683445579,"d":"43.59"}}]
[null,null,"acima de 250m² ",1.3,{"$nulls":4},28,{"v":64.18635465084687,"d":"64.19"}]
[null,"Comercial e serviços","Taxa/Tarifa de disponibilidade",null,10,{"$nulls":3},"(NA)",{"$f":"E23*$H$15","v":{"v":18.391505630615146,"d":"18.39"}}]
[null,null,"Micro negócio – até 50m²",0.7,null,1.2,null,null,12,{"$f":"$H$15*$E$23+$H$15*(I24-$E$23)*$F$24*D24","v":{"v":21.48127857655849,"d":"21.48"}}]
[null,null,"Pequeno porte – de 51 a 100m²",0.9,{"$nulls":4},20,{"$f":"$H$15*$E$23+$H$15*(I25-$E$23)*$F$24*D25","v":{"v":38.254331711679505,"d":"38.25"}}]
[null,null,"Médio porte – de 101 a 300m²",1.2,{"$nulls":4},55,{"v":137.5684621170013,"d":"137.57"}]
[null,null,"Grande porte – > 300m² ",1.5,{"$nulls":4},150,{"v":481.85744752211684,"d":"481.86"}]
[null,"Industrial","Taxa/Tarifa de disponibilidade",null,15,{"$nulls":3},"(NA)",{"$f":"E28*$H$15","v":{"v":27.587258445922718,"d":"27.59"}}]
[null,null,"Microindústria – até 100m²",0.7,null,1.2,null,null,17,{"$f":"$H$15*$E$28+$H$15*(I29-$E$28)*$F$29*D29","v":{"v":30.677031391866063,"d":"30.68"}}]
[null,null,"Pequeno porte – de 101 a 200m²",0.9,{"$nulls":4},30,{"$f":"$H$15*$E$28+$H$15*(I30-$E$28)*$F$29*D30","v":{"v":57.381497567519254,"d":"57.38"}}]
[null,null,"Médio porte – de 201 e 500m²",1.2,{"$nulls":4},150,{"v":385.1181279050811,"d":"385.12"}]
[null,null,"Grande porte – > 500m² ",1.5,{"$nulls":4},250,{"v":805.5479466209433,"d":"805.55"}]
[null,"Pública e filantrópica","Taxa/Tarifa de disponibilidade",null,5,{"$nulls":3},"(NA)",{"$f":"E33*$H$15","v":{"v":9.195752815307573,"d":"9.20"}}]
[null,null,"Pequeno porte – até 200m²",1,null,1,null,null,25,{"$f":"$H$15*$E$33+$H$15*(I34-$E$33)*$F$34*D34","v":{"v":45.978764076537864,"d":"45.98"}}]
[null,null,"Médio porte – entre 200 e 500m²",1.2,{"$nulls":4},65,{"$f":"$H$15*$E$33+$H$15*(I35-$E$33)*$F$34*D35","v":{"v":141.61459335573662,"d":"141.61"}}]
[null,null,"Grande porte – > 500m² ",1.5,{"$nulls":4},150,{"v":409.211000281187,"d":"409.21"}]
[null,"Imóveis vazios, lotes e terrenos – Taxa/Tarifa de disponibilidade",null,null,10,{"$nulls":3},"(NA)",{"$f":"H15*E37","v":{"v":18.391505630615146,"d":"18.39"}}]
[null,"Lançamento mensal da TMRS — cobrança mensal da TMRS conforme o consumo de água do imóvel."]
[]
["Tabela 3 — Estrutura referencial de cálculo da TMRS progressiva conforme a faixa de consumo de água   "]
[null,"Categoria de usuário, TBD e Faixas de Consumo Mensal de Água","FTBi","FFC","VAFi mensal         (> ou = FTBi)","VUa (R$/m³)","Exemplos-TMRS Individuais"]
[{"$nulls":4},"(> ou = FTBi)",null,"Volume Faturado","Valor TMRS R$/mês","Fórmula Geral: TMRS = TBD + VUa x FFC x (VAFi – FTBi)"]
[null,"Residencial normal",{"$nulls":3},{"$f":"'5.1 CalcCustoVBC-Completo'!E37","v":{"v":1.8391505630615146,"d":"1.84"}},null,null,"FFC: fator adimensional de cálculo atribuído para a faixa de consumo da categoria/subcategoria do imóvel "]
[null,"Taxa/Tarifa de Disponibilidade (TBD)",5,{"$nulls":3},"(NA)",{"$f":"C44*$F$43","v":{"v":9.195752815307573,"d":"9.20"}}]
[null,"De 6 a 10m³",null,0.8,"(Informado) ",null,8,{"$f":"$H$44+$F$43*D45*(G45-$C$44)","v":{"v":13.609714166655209,"d":"13.61"}}]
[null,"de 11 a 20m³",null,0.9,null,null,15,{"$f":"$H$44+$F$43*D46*(G46-$C$44)","v":{"v":25.748107882861206,"d":"25.75"}}]
[null,"De 21 a 30m³",null,1,null,null,25,{"v":45.978764076537864,"d":"45.98"}]
[null,"De 31 a 50m³",null,1.1,null,null,40,{"v":80.0030494931759,"d":"80.00"}]
[null,"De 51 a 100m³ (limite)",null,1.2,null,null,75,{"v":163.6844001124748,"d":"163.68"}]
[null,"Residencial social"]
[null,"Taxa/Tarifa de Disponibilidade (TBD)",3,{"$nulls":3},"(NA)",{"$f":"C51*$F$43","v":{"v":5.5174516891845435,"d":"5.52"}}]
[null,"De 4 a 10m³",null,0.5,null,null,8,{"$f":"$H$51+$F$43*D52*(G52-$C$51)","v":{"v":10.11532809683833,"d":"10.12"}}]
[null,"De 11 a 15m³",null,0.6,null,null,15,{"$f":"$H$51+$F$43*D53*(G53-$C$51)","v":{"v":18.75933574322745,"d":"18.76"}}]
[null,"De 16 a 20m³ (limite)",null,0.7,null,null,25,{"v":33.84037036033186,"d":"33.84"}]
[null,"Comercial/serviços"]
[null,"Taxa/Tarifa de Disponibilidade (TBD)",10,{"$nulls":3},"(NA)",{"$f":"C56*$F$43","v":{"v":18.391505630615146,"d":"18.39"}}]
[null,"De 11 a 20m³",null,0.9,null,null,15,{"$f":"$H$56+$F$43*D57*(G57-$C$56)","v":{"v":26.667683164391963,"d":"26.67"}}]
[null,"De 21 a 30m³",null,1,null,null,25,{"$f":"$H$56+$F$43*D58*(G58-$C$56)","v":{"v":45.978764076537864,"d":"45.98"}}]
[null,"De 31 a 50m³",null,1.1,null,null,40,{"v":79.08347421164514,"d":"79.08"}]
[null,"De 51 a 100m³",null,1.2,null,null,75,{"v":161.84524954941327,"d":"161.85"}]
[null,"De 101 a 300m³ (limite)",null,1.3,null,null,300,{"v":711.7512679048061,"d":"711.75"}]
[null,"Industrial"]
[null,"Taxa/Tarifa de Disponibilidade (TBD)",15,{"$nulls":3},"(NA)",{"$f":"C63*$F$43","v":{"v":27.587258445922718,"d":"27.59"}}]
[null,"De 16 a 30m³",null,0.9,null,null,23,{"$f":"$H$63+$F$43*D64*(G64-$C$63)","v":{"v":40.82914249996563,"d":"40.83"}}]
[null,"De 31 a 100m³",null,1,null,null,65,{"$f":"$H$63+$F$43*D65*(G65-$C$63)","v":{"v":119.54478659899844,"d":"119.54"}}]
[null,"De 101 a 250m³",null,1.1,null,null,175,{"v":351.27775754474936,"d":"351.28"}]
[null,"De 251 a 500m³",null,1.2,null,null,375,{"v":822.1003016884971,"d":"822.10"}]
[null,"De 501 a 1000m³ (limite)",null,1.3,null,null,1000,{"v":2382.619554446192,"d":"2382.62"}]
[null,"Pública/filantrópica"]
[null,"Taxa/Tarifa de Disponibilidade (TBD)",10,{"$nulls":3},"(NA)",{"$f":"C70*$F$43","v":{"v":18.391505630615146,"d":"18.39"}}]
[null,"De 11 a 20m³",null,0.8,null,null,15,{"$f":"$H$70+$F$43*D71*(G71-$C$70)","v":{"v":25.748107882861206,"d":"25.75"}}]
[null,"De 21 a 30m³",null,0.9,null,null,25,{"$f":"$H$70+$F$43*D72*(G72-$C$70)","v":{"v":43.220038231945594,"d":"43.22"}}]
[null,"De 31 a 50m³",null,1,null,null,40,{"v":73.56602252246059,"d":"73.57"}]
[null,"De 51 a 100m³",null,1.1,null,null,75,{"v":149.89077088951345,"d":"149.89"}]
[null,"De 101 a 300 m³ (limite)",null,1.2,null,null,300,{"v":658.4159015760222,"d":"658.42"}]
[null,"Imóveis vazios, lotes e terrenos",7,{"$nulls":3},"(NA)",{"$f":"C76*$F$43","v":{"v":12.874053941430603,"d":"12.87"}}]
[null,"Lançamento mensal da TMRS — cobrança mensal da TMRS conforme o consumo de água do imóvel."]
[]
["II - Fator de Rateio: Área Construída (área construida dos imóveis usuários)"]
["Tabela 1 — Estrutura referencial de cálculo linear da TMRS, conforme a área construída do imóvel"]
[null,"Categoria do Usuário","FTBi","FCA","ACIi construída do imóvel                   (> ou = FTBi)","VUc (R$/m2)","Área Limite de incidência (m2)","Exemplos-TMRS Individuais",null,"Fórmula Geral: TMRS = TBD + VUc x (ACIi – FTBi) x FCA"]
[{"$nulls":4},"(> ou = FTBi)",null,null,"Área Construída","Valor TMRS R$/ano","VUc: Valor unitário anual do custo regulatório com base na área construída (R$/m2)"]
[null,"Residencial social)",15,0.5,"(Informado)",{"$f":"'5.1 CalcCustoVBC-Completo'!E39","v":{"v":3.623126609231184,"d":"3.62"}},60,40,{"$f":"$F$83*C83+$F$83*(H83-C83)*D83","v":{"v":99.63598175385755,"d":"99.64"}},"ACIi: área construída do imóvel, observados a área mínima igual ou maior que FTB e o limite máximo da área construída de incidência da TMRS."]
[null,"Residencial ",30,1,null,null,250,120,{"$f":"$F$83*C84+$F$83*(H84-C84)*D84","v":{"v":434.77519310774204,"d":"434.78"}},"FCA: fator de rateio adimensional (FR) atribuído à categoria do imóvel."]
[null,"Comercial e serviços",80,1.2,null,null,1000,300,{"v":1246.3555535755272,"d":"1,246.36"}]
[null,"Industrial",150,1.3,null,null,1500,1000,{"v":4547.023894585136,"d":"4,547.02"}]
[null,"Pública e filantrópica",80,1,null,null,1000,500,{"v":1811.563304615592,"d":"1,811.56"}]
[null,"Imóveis vazios, lotes e terrenos",50,"(NA)",null,null,"(NA)","(NA)",{"$f":"F83*C88","v":{"v":181.15633046155918,"d":"181.16"}}]
[null,"Lançamento anual da TMRS — cobrança da TMRS pode ser em parcela única anual ou em parcelas mensais."]
[]
["Tabela 2 — Estrutura referencial de cálculo progressiva da TMRS, conforme o padrão do imóvel"]
[null,"Categoria do Usuário","Padrão / Área Construída","FTBi e ","FAC","ACIi construída do imóvel                          (> ou = FTBi)","VUc R$/m²","Exemplos-TMRS Individuais"]
[{"$nulls":5},"(> ou = FTBi)",null,"Área Construída","Valor da TMRS R$/ano","Fórmula Geral: TMRS = TBD + VUc x (ACIi – FTBi) x FAC"]
[null,"Residencial social","Taxa/Tarifa de disponibilidade",15,null,"(Informado)",{"$f":"'5.1 CalcCustoVBC-Completo'!E39","v":{"v":3.623126609231184,"d":"3.62"}},"(NA)",{"$f":"D94*$G$94","v":{"v":54.346899138467755,"d":"54.35"}},"FAC: fator de rateio adimensional (FR) atribuído ao padrão/faixa de área construída do imóvel."]
[null,null,"Social de baixa renda",null,0.3,null,null,40,{"$f":"$I$94+$G$94*(H95-$D$94)*E95","v":{"v":81.52034870770163,"d":"81.52"}}]
[null,null,"Padrão popular(1) – até 60m²",null,0.6,null,null,60,{"$f":"$I$94+$G$94*(H96-$D$94)*E96","v":{"v":152.1713175877097,"d":"152.17"}}]
[null,"Residencial ","Taxa/Tarifa de disponibilidade",50,{"$nulls":3},"(NA)",{"$f":"D97*$G$94","v":{"v":181.15633046155918,"d":"181.16"}}]
[null,null,"até 60m²",null,0.8,null,null,60,{"$f":"$I$97+$G$94*(H98-$D$97)*E98","v":{"v":210.14134333540866,"d":"210.14"}}]
[null,null,"de 61 a 100m²",null,1,null,null,80,{"$f":"$I$97+$G$94*(H99-$D$97)*E99","v":{"v":289.8501287384947,"d":"289.85"}}]
[null,null,"De 101 a 250m²",null,1.2,null,null,150,{"v":615.9315235693012,"d":"615.93"}]
[null,null,"acima de 250m² (limite)",null,1.4,null,null,251,{"v":1200.7041582992142,"d":"1,200.70"}]
[null,"Comercial e serviços","Taxa/Tarifa de disponibilidade",80,{"$nulls":3},"(NA)",{"$f":"D102*$G$94","v":{"v":289.85012873849473,"d":"289.85"}}]
[null,null,"Micro negócio – até 100m²",null,0.8,null,null,100,{"$f":"$I$102+$G$94*(H103-$D$102)*E103","v":{"v":347.8201544861937,"d":"347.82"}}]
[null,null,"Pequeno porte – de 101 a 250m²",null,1,null,null,175,{"$f":"$I$102+$G$94*(H104-$D$102)*E104","v":{"v":634.0471566154572,"d":"634.05"}}]
[null,null,"Médio porte – de 251 a 500m²",null,1.5,null,null,375,{"v":1893.0836533232937,"d":"1,893.08"}]
[null,null,"Grande porte – de  501 a 1000m² (limite)",null,2,null,null,1000,{"v":6956.403089723874,"d":"6,956.40"}]
[null,"Industrial","Taxa/ Taxa/Tarifa de disponibilidade",150,{"$nulls":3},"(NA)",{"$f":"D107*$G$94","v":{"v":543.4689913846776,"d":"543.47"}}]
[null,null,"Micro indústria – até 200m²",null,0.8,null,null,200,{"$f":"$I$107+$G$94*(H108-$D$107)*E108","v":{"v":688.3940557539249,"d":"688.39"}}]
[null,null,"Pequeno porte – de 201 a 500m²",null,1,null,null,350,{"$f":"$I$107+$G$94*(H109-$D$107)*E109","v":{"v":1268.0943132309144,"d":"1,268.09"}}]
[null,null,"Médio porte – de 501 e 1000m²",null,1.5,null,null,750,{"v":3804.2829396927427,"d":"3,804.28"}]
[null,null,"Grande porte – de 1001 a 1500m² (limite)",null,2.5,null,null,1500,{"v":12771.521297539923,"d":"12,771.52"}]
[null,"Pública e filantrópica","Taxa/Tarifa de disponibilidade",80,{"$nulls":3},"(NA)",{"$f":"D112*$G$94","v":{"v":289.85012873849473,"d":"289.85"}}]
[null,null,"Pequeno porte – até 200m²",null,1,null,null,200,{"$f":"$I$112+$G$94*(H113-$D$112)*E113","v":{"v":724.6253218462368,"d":"724.63"}}]
[null,null,"Médio porte – de 201 e 500m²",null,1.2,null,null,350,{"$f":"$I$112+$G$94*(H114-$D$112)*E114","v":{"v":1463.7431501293984,"d":"1,463.74"}}]
[null,null,"Grande porte – de 501 a 1000m² (limite)",null,1.5,null,null,1000,{"v":5289.764849477529,"d":"5,289.76"}]
[null,"Imóveis vazios, lotes e terrenos",null,50,{"$nulls":3},"(NA)",{"$f":"G94*D116","v":{"v":181.15633046155918,"d":"181.16"}}]
[null,"Lançamento anual da TMRS — cobrança da TMRS pode ser em parcela única anual ou em parcelas mensais."]
[]
["III - Fator de Rateio: Quantidade de domicílios/imóveis usuários efetivos e potenciais",{"$nulls":6},"Exemplos-TMRS Individuais"]
["Tabela 1 — Estrutura referencial de cálculo da TMRS, conforme o padrão do imóvel"]
[null,"Categoria do Usuário","Padrão / Área Construída","FPI","FTBi","FCI","VUd R$/domicílio","Valor TMRS R$/domicílio","Fórmulas Gerais:"]
[null,"Residencial social","Taxa/Tarifa de disponibilidade (TBD)",null,0.3,null,{"$f":"'5.1 CalcCustoVBC-Completo'!E33","v":{"v":362.3126609231184,"d":"362.31"}},{"$f":"$G$122*E122","v":{"v":108.69379827693552,"d":"108.69"}},"TMRS = TBD = VUd x FTBi para domicílios usuários potenciais (imóveis vazios, lotes e terrenos)"]
[null,null,"Social de baixa renda",0.5,null,0.8,null,{"$f":"$G$122*D123*F123","v":{"v":144.92506436924737,"d":"144.93"}},"     TBD: Tarifa/Taxa básica anual de disponibilidade dos serviços."]
[null,null,"Padrão popular(1) – até 60m²",0.8,{"$nulls":3},{"$f":"$G$122*D124*F123","v":{"v":231.8801029907958,"d":"231.88"}},"     VUd: Valor unitário anual por domicílio (R$/domicílio)."]
[null,"Residencial normal ","Taxa/Tarifa de disponibilidade (TBD)",null,0.4,null,null,{"$f":"$G$122*E125","v":{"v":144.92506436924737,"d":"144.93"}},"TMRS = TVU = VUd x FPI x FCI para domicílios usuários efetivos."]
[null,null,"até 60m²",0.8,null,1,null,{"$f":"$G$122*D126*$F$126","v":{"v":289.85012873849473,"d":"289.85"}},"     TVU: valor anual da Taxa ou Tarifa  pelo uso efetivo dos serviços."]
[null,null,"de 61 a 100m²",0.9,{"$nulls":3},{"$f":"$G$122*D127*$F$126","v":{"v":326.0813948308066,"d":"326.08"}},"      FPI: Fator adimensional de rateio (FR) do custo do serviço, conforme o padrão/faixa de área construída do imóvel."]
[null,null,"De 100 a 250m²",1.1,{"$nulls":3},{"v":398.5439270154303,"d":"398.54"},"      FCI: Fator adimensional de rateio (FR) do custo do serviço, conforme a categoria do usuário."]
[null,null,"acima de 250m² ",1.3,{"$nulls":3},{"v":471.00645920005394,"d":"471.01"}]
[null,"Comercial e serviços","Taxa/Tarifa de disponibilidade (TBD)",null,0.5,null,null,{"$f":"$G$122*E130","v":{"v":181.1563304615592,"d":"181.16"}}]
[null,null,"Micro negócio – até 50m²",0.7,null,1.2,null,{"$f":"$G$122*D131*$F$131","v":{"v":304.34263517541945,"d":"304.34"}}]
[null,null,"Pequeno porte – de 51 a 100m²",0.9,{"$nulls":3},{"$f":"$G$122*D132*$F$131","v":{"v":391.2976737969679,"d":"391.30"}}]
[null,null,"Médio porte – de 101 a 300m²",1.2,{"$nulls":3},{"v":521.7302317292905,"d":"521.73"}]
[null,null,"Grande porte – > 300m² ",1.5,{"$nulls":3},{"v":652.162789661613,"d":"652.16"}]
[null,"Industrial","Taxa/Tarifa de disponibilidade (TBD)",null,0.5,null,null,{"$f":"$G$122*E135","v":{"v":181.1563304615592,"d":"181.16"}}]
[null,null,"Micro indústria – até 100m²",0.8,null,1.5,null,{"$f":"$G$122*D136*$F$136","v":{"v":434.7751931077421,"d":"434.78"}}]
[null,null,"Pequeno porte – de 101 a 200m²",1,{"$nulls":3},{"$f":"$G$122*D137*$F$136","v":{"v":543.4689913846776,"d":"543.47"}}]
[null,null,"Médio porte – de 201 e 500m²",1.2,{"$nulls":3},{"v":652.1627896616131,"d":"652.16"}]
[null,null,"Grande porte – > 500m² ",1.5,{"$nulls":3},{"v":815.2034870770163,"d":"815.20"}]
[null,"Pública e filantrópica","Taxa/Tarifa de disponibilidade (TBD)",null,0.5,null,null,{"$f":"$G$122*E140","v":{"v":181.1563304615592,"d":"181.16"}}]
[null,null,"Pequeno porte – até 200m²",0.8,null,1,null,{"$f":"$G$122*D141*$F$141","v":{"v":289.85012873849473,"d":"289.85"}}]
[null,null,"Médio porte – entre 200 e 500m²",1,{"$nulls":3},{"$f":"$G$122*D142*$F$141","v":{"v":362.3126609231184,"d":"362.31"}}]
[null,null,"Grande porte – > 500m² ",1.2,{"$nulls":3},{"v":434.7751931077421,"d":"434.78"}]
[null,"Imóveis vazios, lotes e terrenos ","Taxa/Tarifa de disponibilidade (TBD)",null,0.4,null,null,{"$f":"G122*E144","v":{"v":144.92506436924737,"d":"144.93"}}]
[null,"Lançamento anual da TMRS — cobrança da TMRS pode ser em parcela única anual ou em parcelas mensais."]
[]
[]
["      RETORNAR AO SUMÁRIO"]
["5. Hipóteses de cobrança em regime de tarifa"]
["1.Quando o serviço for prestado mediante concessão comum ou patrocinada, incluindo todas as atividades de coleta até a destinação final adequada, a cobrança do serviço poderá ser feita diretamente pelo prestador, em regime de tarifa, por meio de documento de cobrança específico (conta/fatura). Neste caso, o prestador não receberá qualquer espécie de contraprestação do Município, exceto na forma de investimento, sendo a tarifa e outras receitas acessórias a fonte exclusiva de remuneração do serviço prestado."]
[]
[]
[]
[]
["2. No caso de concessão patrocinada (PPP), e desde que o prestador execute todas as etapas do serviço, também poderá ser adotado regime de tarifa. Nesse caso, a remuneração do serviço será coberta parcialmente pela tarifa e outras receitas acessórias e o restante será coberto por meio de contraprestação do Município, na forma pactuada no contrato."]
[]
[]
["3. Essas hipóteses também se aplicam quando houver prestação em regime de gestão associada, por meio de consórcio ou de convênio de cooperação, em que há delegação por meio de contrato de programa."]
[]
["4. Nesses casos, a cobrança somente poderá incidir sobre os usuários efetivos do serviço, condição esta que deverá ser estabelecida pela regulação legal da cobrança, mediante critérios objetivos de aferição, tais como: ser usuário ativo dos serviços de abastecimento de água, de esgotamento sanitário e/ou de energia elétrica; o imóvel, edificado ou não, estar sendo utilizado para qualquer atividade (moradia, comércio, serviço, indústria etc.); e/ou haver adesão contratual do usuário, ainda que a adesão seja compulsória nos termos da lei."]
[]
[]
[]
[]
["5. A jurisprudência existente não é conclusiva sobre a possibilidade de cobrança de tarifa desses serviços, quando houver prestação direta por órgão ou entidade municipal. No entanto, por interpretação isonômica com a cobrança de tarifas pela prestação direta dos serviços de abastecimento de água e de esgotamento sanitário, pode-se concluir que também nesse caso pode ser adotado o regime de cobrança de tarifa dos usuários efetivos do serviço."]
[]
[]
[]
["6. Os critérios de cálculo da tarifa podem ser iguais aos propostos para o cálculo da taxa ou outros definidos pela regulação, observando-se que, neste caso, se a legislação municipal não determinar o contrário, a regulação da tarifa poderá ser feita por decreto e/ou, complementarmente, por normas do ente regulador. "]
[]
[]
["7. Se houver prestação do serviço de abastecimento de água universalizada na área de cobertura do serviço de coleta de resíduos sólidos domiciliares ou equiparados, a tarifa ou taxa de manejo de resíduos poderá ser calculada com base no consumo de água, utilizando estrutura similar à daquele serviço."]
[]
["8. Para os imóveis, edificados ou não, que não sejam caracterizados como usuários efetivos dos serviços, somente poderá haver cobrança de taxa pela disposição e uso potencial desses serviços. Essa receita pertence ao Município ou à entidade pública prestadora do serviço, mas pode ser vinculada  para o pagamento de contraprestação ao prestador ou para realização de investimentos em infraestruturas do serviço, no caso de prestação em regime de concessão."]

{"sheet":"7 Glossário","index":9,"n_rows":36,"n_cols":4,"rows_kept":36,"merged":[[1,1,2,3]]}
["     RETORNAR para o SUMÁRIO"]
[null,"Glossário de termos, expressões e conceitos técnicos utilizados nesta ferramenta"]
[]
[null,"Nº ordem","Termo/expressão/conceito","Definição "]
[null,1,"Acréscimos regulatórios","Corresponde aos valores de acréscimos regulatórios referentes a custos ou despesas não especificadas na Planilha \"2 DadosFinanServRSU\", tais como restos a pagar de despesas de custeio deste serviço do ano anterior, sem cobertura de caixa; perdas de receitas por inadimplência ou por anistia; subsídio tributário/tarifário de isenções e outros benefícios sociais; outros custos admitidos pela regulação."]
[null,2,"Administração central","Estrutura administrativa da Prefeitura ou da entidade municipal (autarquia/empresa) responsável pela prestação do serviço de manejo de resíduos sólidos urbanos, correspondente às atividades-meio da Administração, tais como Direção-geral, Secretaria/Departamento de Administração, Secretaria/Departamento de Finanças, Secretaria/Departamento de Planejamento, Procuradoria Jurídica etc."]
[null,3,"Ano-base de cálculo dos custos","O último ano civil completo cujos custos realizados dos serviços serão tomados como base para a estimativa dos custos ou do Valor Básico de Cálculo (VBC) para o ano em que vigorarão as taxas ou tarifas calculadas."]
[null,4,"Ativo imobilizado líquido","Corresponde ao valor total de aquisição, construção ou implantação dos ativos imobilizados menos o valor total acumulado da depreciação e exaustão dos mesmos."]
[null,5,"Ativos imobilizados","Todos os bens móveis e imóveis utilizados ou vinculados à prestação dos serviços."]
[null,6,"Balancetes analíticos","Relatórios detalhados da execução orçamentária e dos registros e movimentações contábeis das variações patrimoniais ativas e passivas, das receitas e das depesas do Município ou da entidade municipal autônoma (autarquia/empresa) responsável pela prestação do serviço."]
[null,7,"Centros de custos","Correspondem ao conjunto de unidades administrativas e/ou de atividades específicas relacionadas à prestação do serviço, para as quais se deseja apropriar e gerenciar os respectivos custos, tais como atividades da Administração Central, atividade de coleta convencional de resíduos, atividade de coleta seletiva, atividade de triagem e/ou de compostagem, atividade de implantação e operação de aterro sanitário etc."]
[null,8,"Custo contábil","Custo do serviço apurado com base nas informações contábeis relativas às despesas correntes vinculadas ao serviço, mais as depesas de depreciação e exaustão de ativos imobilizados, inclusive despesas provisionadas."]
[null,9,"Custo regulatório","Custo do serviço apurado depois dos ajustes de acréscimos e deduções regulatórias estabelecidos pela regulação, cujo valor constitui a base de cálculo (VBC) das taxas ou tarifas pela disposição e prestação do serviço de manejo de resíduos sólidos urbanos."]
[null,10,"Deduções regulatórias","Valores de deduções definidas pela regulação referentes a receitas acessórias e eventuais, receitas de multas e encargos por inadimplência, valores de multas ou encargos contratuais pagos a terceiros; despesa com publicidade não institucional; e outros gastos ineficientes previstos pela regulação. "]
[null,11,"Depreciação de ativo imobilizado","Parcela do valor de aquisição, construção ou implantação do ativo imobilizado vinculado ao serviço que é incorporada/apropriada ao custo da prestação do serviço, equivalente à fração (%) de desgaste anual desse bem, proporcional à sua vida útil estimada. Forma de recuperação do capital investido, para formação de fundo rotativo (art. 13, Lei nº 11.445/2007) para reposição dos bens após sua vida útil ou para financiar novos investimentos em expansão ou melhoria do serviço,\nNo caso dos bens móveis, que podem ser vendidos ao final de sua vida útil, o cálculo da depreciação incide sobre o valor de aquisição menos o percentual do valor residual esperado pelo qual o bem poderá ser vendido após a desativação (desmobilização) do seu uso no serviço. "]
[null,12,"Despesas com a cobrança e arrecadação de taxas e tarifas","Despesas ou gastos com o processamento e a emissão de documentos/contas de arrecadação das taxas ou tarifas, bem como despesas com tarifas bancárias devidas pela arrecadação dos valores pela rede bancária ou de seus credenciados."]
[null,13,"Despesas com pessoal contratado","Valor total pago ou devido no exercício a empresas terceirizadoras de mão de obra ou a profissionais autônomos, lotados em atividades continuadas, substituindo ou complementando o quadro de pessoal próprio. "]
[null,14,"Despesas com pessoal próprio","Valor de todas as remunerações pagas ou devidas no exercício aos servidores/empregados próprios da Prefeitura ou da entidade municipal alocados à prestação do serviço de manejo de resíduos sólidos urbanos, inclusive provisões de férias e outros benefícios futuros dos servidores/empregados, bem como as despesas com contribuições previdenciárias patronais, vale-transporte, vale-alimentação, auxílio-educação e outros eventuais benefícios e vantagens."]
[null,15,"Despesas de regulação e fiscalização dos serviços ","Valor devido à entidade reguladora e fiscalizadora da prestação do serviço, particularmente quando houver delegação contratual da prestação do serviço a terceiros."]
[null,16,"Despesas diretas — administrativas e operacionais","Despesas ou  gastos em atividades administrativas e operacionais diretamente relacionadas com a prestação do serviço."]
[null,17,"Despesas extraordinárias ou eventuais","Despesas de ocorrência eventual ou em situações extraordinárias, não provisionadas ou imprevisíveis, tais como desativação de lixões, indenizações civis e passivos trabalhistas, ocorrências de greves, calamidades e catástrofes etc.\nDevem ser consideradas somente as despesas identificáveis e exclusivas das atividades relacionadas ao serviço."]
[null,18,"Despesas financeiras","Despesas de juros e demais encargos contratuais, tais como taxa de risco, taxa de administração, correção monetária ou cambial, sobre empréstimos para investimentos em infraestruturas dos serviços ou para capital de giro."]
[null,19,"Despesas indiretas (administrativas ou de apoio)","Parcela das despesas da administração geral da Prefeitura, correspondentes às suas atividades-meio (Secretarias de Administração, de Finanças, de Planejamento, Procuradoria Jurídica etc.) e, se for o caso, da(s) Secretaria(s) a que estejam subordinadas, de forma não exclusiva, as unidades (Departamento, Divisão, Setor etc.) responsáveis pela prestação do serviço de coleta e destinação final dos resíduos sólidos urbanos, cujo valor pode ser incorporado/apropriado ao custo do serviço.\nO mesmo se aplica quando o serviço for prestado por autarquia ou empresa municipal que também seja responsável pela prestação de outros serviços."]
[null,20,"Dívida ativa","Dívidas vencidas, relativas a anos anteriores ao ano corrente, referentes a tributos e outras receitas correntes, inclusive taxas e tarifas devidas por usuários de serviços públicos. Geralmente, essas dívidas são registradas/lançadas em contas contábeis específicas do ativo patrimonial no encerramento do ano corrente ou logo no início do ano seguinte.  "]
[null,null,"Economia (de água)","Unidade imobiliária autônoma correspondente a cada imóvel ou parte independente do mesmo, inclusive terreno não edificado, com registro individual no cadastro imobiliário do município ou inscrito no cadastro de usuários do prestador do serviço como economia ou unidade individual usuária dos serviços públicos de saneamento básico."]
[null,21,"Exaustão de ativo imobilizado","Definição igual à da depreciação que se aplica ao ativo correspondente ao aterro sanitário ou à parte dele que será desativada e encerrada definitivamente ao final de sua vida útil, quando já não poderá receber mais resíduos/rejeitos e cuja área não poderá ser vendida ou utilizada para qualquer atividade vinculada ao serviço. "]
[null,22,"Fato gerador da cobrança","Utilização, efetiva ou potencial, de serviço público específico e divisível prestado ao contribuinte ou posto à sua disposição em efetivo funcionamento, consideradas as atividades e situações de sua prestação ou disposição em que poderão ser cobradas taxas ou tarifas diretamente dos usuários/contribuintes."]
[null,23,"Isenções e subsídios legais","Isenções — benefícios fiscais de não pagamento de tributos (impostos, taxas e contribuições) ou de preços públicos (tarifas) concedidos por lei para determinadas categorias de contribuintes ou de usuários de serviços públicos.\nSubsídios — benefícios financeiros geralmente concedidos a cidadãos de baixa renda ou a usuários de serviços públicos, sob a forma de desconto integral ou parcial do preço do bem ou serviço (por exemplo, farmácia popular, bolsa escolar) ou da taxa ou tarifa de serviço público, ou mediante pagamento ou repasse de um valor monetário destinado à aquisição ou ao pagamento do bem ou serviço pelo próprio beneficiário."]
[null,24,"Materiais de consumo","Todos os materiais, exceto energia elétrica e combustíveis e lubrificantes, consumidos em quaisquer atividades da prestação dos serviços, incluindo uniformes, equipamentos individuais de segurança, material de escritório, material de limpeza e conservação, consumo de água etc.\nNão inclui materiais de construção e outros empregados na construção, implantação, reposição ou reforma de quaisquer edificações ou infraestruturas operacionais vinculadas ao serviço, os quais devem ser apropriados como investimentos em ativos imobilizados."]
[null,25,"PIS/PASEP (Programa de Integração Social/Programa de Formação do Patrimônio do Servidor Público)","Contribuição social incidente sobre a receita total do serviço, originária da cobrança de taxas ou tarifas e de preços públicos, de repasses orçamentários ou subvenções e doações de outros entes públicos ou de terceiros e quaisquer receitas eventuais vinculadas ao serviço. A alíquota aplicável ao setor público é de 1%."]
[null,26,"Política de cobrança ou de remuneração de serviço público","Compreende as normas de regulação, os atos e procedimentos administrativos, que definem o regime de cobrança (tributário ou tarifário), o fato gerador, o contribuinte ou usuário devedor, a base e os critérios de cálculo, a estrutura e forma de cálculo da remuneração (taxa ou tarifa) devida pela disposição e prestação e pelo uso efetivo ou potencial do serviço público."]
[null,27,"Provisões de despesas contingentes — cíveis, trabalhistas e outras","Provisão de despesas previsíveis com gastos ou desembolsos futuros relativos a ações civis ou trabalhistas ajuizadas no ano; encerramento de aterro sanitário; desativação de lixão etc. "]
[null,28,"Regime e forma de prestação do serviço","A Constituição Federal (art, 175) admite dois regimes de prestação do serviço público: o Regime de Prestação Direta, que pode ser centralizada ou descentralizada, e o Regime de Prestação Indireta, mediante delegação a terceiros, que pode ser em regime de concessão precedida de licitação ou, em regime de gestão associada, autorizada por consórcio público ou por convênio de cooperação. \nNo regime de prestação direta, a forma de prestação pode ser centralizada, feita por órgão da estrutura interna da Administração Direta, ou descentralizada, feita por autarquia ou empresa municipal, integrante da Administração Indireta do Município, inclusive consórcio público do qual participe, quando este for o próprio prestador.\nNo Regime de Prestação Indireta, a prestação pode ser feita por qualquer entidade privada ou estatal, mediante contrato de concessão precedida de licitação ou, no âmbito da gestão associada, por entidade pública ou estatal de outro ente da Federação, mediante contrato de programa, autorizada por consórcio público do qual o Município participe ou por convênio de cooperação. "]
[null,29,"Taxa de remuneração do ativo imobilizado líquido","Valor percentual estabelecido pela regulação do serviço como remuneração anual do ativo imobilizado em operação (capital investido), incidente sobre o valor ou saldo líquido médio anual dos ativos imobilizados, deduzidas a depreciação e exaustão, cujo montante pode/deve ser incorporado ao custo do serviço para efeito de determinação do custo regulatório e do Valor Básico de Cálculo (VBC) da taxa ou tarifa."]
[null,30,"Taxa SELIC","Taxa do Sistema Especial de Liquidação e de Custódia (SELIC) em que são transacionados títulos públicos federais. Funciona como taxa básica de juros da economia, referência para todas as taxas de juros do país, como as taxas de juros dos empréstimos, dos financiamentos e das aplicações financeiras.  "]
[null,31,"Valor Básico de Cálculo (VBC)","Valor unitário do custo regulatório dos serviços que serve de base para o cálculo dos valores das taxas ou tarifas individuais aplicadas para cada usuário ou contribuinte, conforme os critérios de cálculo definidos pela regulação.\nA planilha/aba \"6 Tabelas_Taxas_PreçosUnitários\" apresenta exemplos de critérios de cálculo das taxas ou tarifas individuais."]

{"sheet":"8 OrientaçõesTabelasAuxiliares","index":10,"n_rows":127,"n_cols":19,"rows_kept":127,"merged":[[0,1,0,6],[1,1,1,10],[2,1,2,2],[2,3,2,4],[2,5,2,6],[2,7,2,8],[2,9,2,10],[2,11,2,12],[27,1,27,10],[28,1,29,2],[28,3,29,3],[30,1,30,2],[31,1,31,2],[32,1,32,2],[33,1,33,2],[34,1,34,2],[35,1,35,2],[36,1,36,2],[37,1,37,2],[38,1,38,2],[39,1,39,2],[40,1,40,2],[41,1,41,2],[42,1,42,2],[43,1,43,2],[44,1,44,2],[45,1,45,2],[46,1,46,2],[47,1,47,2],[48,1,48,2],[49,1,49,2],[50,1,50,2],[51,1,51,2],[52,1,52,2],[53,1,53,2],[54,1,54,2],[55,1,55,2],[56,1,56,2],[57,1,57,2],[58,1,58,2],[59,1,59,3],[61,1,62,3],[63,1,63,2],[64,1,64,2],[65,1,65,2],[66,1,66,2],[67,1,67,2],[68,1,68,3],[70,1,71,3],[72,1,72,2],[73,1,73,2],[74,1,74,2],[75,1,75,2],[76,1,76,2],[77,1,77,3],[79,1,80,3],[81,1,81,2],[82,1,82,2],[83,1,83,2],[84,1,84,2],[85,1,85,2],[86,1,86,3],[88,1,89,3],[90,1,90,2],[91,1,91,2],[92,1,92,2],[93,1,93,2],[94,1,94,2],[95,1,95,3],[97,1,98,3],[99,1,99,2],[100,1,100,2],[101,1,101,2],[102,1,102,2],[103,1,103,2],[104,1,104,3],[106,1,107,3],[108,1,108,3],[109,1,109,3],[110,1,110,3],[111,1,111,3],[114,1,114,10],[115,1,116,1],[115,2,116,2],[115,3,116,3],[115,4,116,4],[115,5,116,5],[115,6,116,6],[115,7,115,10],[115,11,115,12]]}
[null,"TABELA AUXILIAR PARA LEVANTAMENTO E CONTROLE GERENCIAL DE ATIVOS IMOBILIZADOS DO SERVIÇO DE MANEJO DE RESÍDUOS",{"$nulls":5},"   RETORNAR para o SUMÁRIO"]
[null,"Geralmente, o sistema de gestão patrimonial das Prefeituras só controla os bens móveis (veículos, mobiliários, computadores, máquinas etc.). A maioria dos municípios também não tem cadastro técnico e/ou registros regulares em cartórios de seus bens móveis e imóveis. As normas de contabilidade aplicáveis ao setor público orientam para que os municípios façam o controle e a contabilidade patrimonial, inclusive a depreciação de seus bens móveis e imóveis, especialmente os bens vinculados à prestação de serviços públicos continuados e remunerados por taxas ou tarifas.\nDe outro lado, para que se possa considerar as despesas de depreciação desses bens como custo dos serviços cobertos por taxas ou tarifas, é necessário que o Município ou o prestador dos serviços tenha algum tipo de controle contábil ou gerencial desses bens, que permita calcular/estimar essas despesas.\nA tabela abaixo é um modelo que pode ser adotado para o controle gerencial dos bens móveis e imóveis (ativos imobilizados) vinculados aos serviços de manejo de resíduos sólidos urbanos, enquanto não forem implantados os procedimentos contábeis para esse fim."]
[null,"Atividade ou área de alocação dos bens ==>>>",null,"Coleta de Resíduos",null,"Unidades de Triagem/Compostagem",null,"Unidade de Transbordo e Ecopontos",null,"Aterro ou Central de Tratamento",null,"Bens de Uso Geral do Serviço RSU"]
[null,"Descrição dos bens","Taxa de depreciação anual (%)","Mês/Ano de Aquisição","Valor","Mês/Ano de Aquisição","Valor","Mês/Ano de Aquisição","Valor","Mês/Ano de Aquisição","Valor","Mês/Ano de Aquisição","Valor",null,"Legenda de cores das células:"]
[null,"Terrenos de uso permanente",{"v":0,"d":"0%"},{"$nulls":12}," Verde - Informação a ser fornecida pelo usuário"]
[{"$nulls":15}," Vermelho - Erro de cálculo nesta célula"]
[null,"Terreno exclusivo do aterro sanitário",{"v":0.04,"d":"4%"},{"$nulls":12}," Amarelo - Resultado de cálculo"]
[{"$nulls":15}," Branco - Outros resultados de cálculo"]
[null,"Edificações, instalações e infraestruturas gerais exclusivas do aterro sanitário ",{"v":0.04,"d":"4%"},{"$nulls":12},"Azul - Células de totalização, resultados de cálculo a medida que você alimenta os dados"]
[{"$nulls":15},"Campos sem informações. Células bloqueadas para inserção de dados"]
[]
[null,"Células de aterramento",{"v":0.5,"d":"50%"}]
[]
[]
[]
[null,"Edificações, estruturas e instalações permanentes",{"v":0.02,"d":"2%"}]
[]
[]
[null,"Veículos, máquinas e equipamentos operacionais",{"v":0.1,"d":"10%"}]
[]
[]
[]
[null,"Mobiliários e outros bens móveis",{"v":0.1,"d":"10%"}]
[]
[]
[]
["II","Apropriação das despesas administrativas e operacionais exclusivas com o serviço de manejo de resíduos sólidos urbanos"]
[null,"Esta tabela destina-se a apoiar os gestores do serviço para o levantamento ou cálculo estimativo e gerenciamento das despesas administrativas e operacionais com o serviço de manejo de resíduos sólidos urbanos, caso não disponham de informações identificáveis dessas despesas no sistema de contabilidade da Prefeitura.\nServe também para estimar o custo do serviço no primeiro ano de sua implantação, para efeito de instituição e cálculo das taxas ou tarifas que vigorarão nesse primeiro ano.\nOs valores subtotais das despesas dos itens 1 a 6 e das despesas do item 7 devem ser transportados (copiados) para a planilha/aba \"5 Cálculo_Custo e VBC\" dessa ferramenta. "]
[null,"1 Despesas com pessoal próprio\n(Informar os nomes do pessoal lotado nas atividades abaixo)",null,"Cargo/Função"," Informar as despesas com pessoal nos períodos abaixo (remunerações, contribuições previdenciárias, assistência médica, vale-refeição e outros benefícios)"]
[{"$nulls":4},2018,2019,2020,"2020-01-01","2020-02-01","2020-03-01","2020-04-01","2020-05-01","2020-06-01","2020-07-01","2020-08-01","2020-09-01","2020-10-01","2020-11-01","2020-12-01"]
[null,"1.1 Gerência e apoio administrativo"]
[null,"(Nome 1...)"]
[null,"(Nome 2...)"]
[null,"................."]
[]
[null,"1.2 Serviço de coleta convencional e seletiva"]
[null,"(Nome 1...)"]
[null,"(Nome 2...)"]
[null,"(Nome 3...)"]
[null,"(Nome 4...)"]
[null,"................."]
[]
[null,"1.3 Serviço de triagem/compostagem"]
[null,"(Nome 1...)"]
[null,"(Nome 2...)"]
[null,"................."]
[]
[null,"1.4 Serviço de transbordo"]
[null,"(Nome 1...)"]
[null,"(Nome 2...)"]
[null,"................."]
[]
[null,"1.5 Serviço de operação do aterro sanitário"]
[null,"(Nome 1...)"]
[null,"(Nome 2...)"]
[null,"(Nome 3...)"]
[null,"(Nome 4...)"]
[null,"................."]
[]
[null,"Subtotal ",null,null,{"$f":"SUM(E31:E59)","v":{"v":0,"d":"0.00"}},{"$f":"SUM(F31:F59)","v":{"v":0,"d":"0.00"}},{"v":0,"d":"0.00"},{"v":0,"d":"0.00"},{"v":0,"d":"0.00"},{"v":0,"d":"0.00"},{"v":0,"d":"0.00"},{"v":0,"d":"0.00"},{"v":0,"d":"0.00"},{"v":0,"d":"0.00"},{"v":0,"d":"0.00"},{"v":0,"d":"0.00"},{"v":0,"d":"0.00"},{"v":0,"d":"0.00"},{"v":0,"d":"0.00"}]
[]
[null,"2 Despesas com pessoal/mão de obra terceirizada",null,null,"Informar as despesas com o pessoal/mão de obra terceirizada nos períodos abaixo (Valores pagos/devidos às empresas ou aos autônomos contratados)"]
[{"$nulls":4},2018,2019,2020,"2020-01-01","2020-02-01","2020-03-01","2020-04-01","2020-05-01","2020-06-01","2020-07-01","2020-08-01","2020-09-01","2020-10-01","2020-11-01","2020-12-01"]
[null,"2.1 Gerência e apoio administrativo"]
[null,"2.2 Serviço de coleta convencional e seletiva"]
[null,"2.3 Serviço de triagem/compostagem"]
[null,"2.4 Serviço de transbordo"]
[null,"2.5 Serviço de operação do aterro sanitário"]
[null,"Subtotal",null,null,{"$f":"SUM(E64:E68)","v":{"v":0,"d":"0.00"}},{"$f":"SUM(F64:F68)","v":{"v":0,"d":"0.00"}},{"v":0,"d":"0.00"},{"v":0,"d":"0.00"},{"v":0,"d":"0.00"},{"v":0,"d":"0.00"},{"v":0,"d":"0.00"},{"v":0,"d":"0.00"},{"v":0,"d":"0.00"},{"v":0,"d":"0.00"},{"v":0,"d":"0.00"},{"v":0,"d":"0.00"},{"v":0,"d":"0.00"},{"v":0,"d":"0.00"},{"v":0,"d":"0.00"}]
[]
[null,"3 Despesas com serviços terceirizados (exceto mão de obra)",null,null,"Informar as despesas com serviços terceirizados nos períodos abaixo (Valores pagos/devidos a prestadores de serviços contratados)"]
[{"$nulls":4},2018,2019,2020,"2020-01-01","2020-02-01","2020-03-01","2020-04-01","2020-05-01","2020-06-01","2020-07-01","2020-08-01","2020-09-01","2020-10-01","2020-11-01","2020-12-01"]
[null,"3.1 Gerência e apoio administrativo"]
[null,"3.2 Serviço de coleta convencional e seletiva"]
[null,"3.3 Serviço de triagem/compostagem"]
[null,"3.4 Serviço de transbordo"]
[null,"3.5 Serviço de operação do aterro sanitário"]
[null,"Subtotal",null,null,{"$f":"SUM(E73:E77)","v":{"v":0,"d":"0.00"}},{"v":0,"d":"0.00"},{"v":0,"d":"0.00"},{"v":0,"d":"0.00"},{"v":0,"d":"0.00"},{"v":0,"d":"0.00"},{"v":0,"d":"0.00"},{"v":0,"d":"0.00"},{"v":0,"d":"0.00"},{"v":0,"d":"0.00"},{"v":0,"d":"0.00"},{"v":0,"d":"0.00"},{"v":0,"d":"0.00"},{"v":0,"d":"0.00"},{"v":0,"d":"0.00"}]
[]
[null,"4 Despesas com aluguéis de imóveis, veículos, máquinas  ou equipamentos",null,null,"Informar as despesas com aluguel e outros custos acessórios da locação de imóveis, veículos, máquinas e equipamentos."]
[{"$nulls":4},2018,2019,2020,"2020-01-01","2020-02-01","2020-03-01","2020-04-01","2020-05-01","2020-06-01","2020-07-01","2020-08-01","2020-09-01","2020-10-01","2020-11-01","2020-12-01"]
[null,"4.1 Gerência e apoio administrativo"]
[null,"4.2 Serviço de coleta convencional e seletiva"]
[null,"4.3 Serviço de triagem/compostagem"]
[null,"4.4 Serviço de transbordo"]
[null,"4.5 Serviço de operação do aterro sanitário"]
[null,"Subtotal",null,null,{"$f":"SUM(E82:E86)","v":{"v":0,"d":"0.00"}},{"v":0,"d":"0.00"},{"v":0,"d":"0.00"},{"v":0,"d":"0.00"},{"v":0,"d":"0.00"},{"v":0,"d":"0.00"},{"v":0,"d":"0.00"},{"v":0,"d":"0.00"},{"v":0,"d":"0.00"},{"v":0,"d":"0.00"},{"v":0,"d":"0.00"},{"v":0,"d":"0.00"},{"v":0,"d":"0.00"},{"v":0,"d":"0.00"},{"v":0,"d":"0.00"}]
[]
[null,"5 Despesas com combustível e manutenção de veículos, máquinas e equipamentos",null,null,"Informar as despesas com combustível, lubrificantes e manutenção de veículos, máquinas e equipamentos"]
[{"$nulls":4},2018,2019,2020,"2020-01-01","2020-02-01","2020-03-01","2020-04-01","2020-05-01","2020-06-01","2020-07-01","2020-08-01","2020-09-01","2020-10-01","2020-11-01","2020-12-01"]
[null,"5.1 Gerência e apoio administrativo"]
[null,"5.2 Serviço de coleta convencional e seletiva"]
[null,"5.3 Serviço de triagem/compostagem"]
[null,"5.4 Serviço de transbordo"]
[null,"5.5 Serviço de operação do aterro sanitário"]
[null,"Subtotal",null,null,{"$f":"SUM(E91:E95)","v":0},0,0,0,0,0,0,0,0,0,0,0,0,0,0]
[]
[null,"6 Despesas com insumos, energia, água e materiais de consumo (exceto combustível)",null,null,"Informar as despesas com insumos, energia, água e materiais de consumo "]
[{"$nulls":4},2018,2019,2020,"2020-01-01","2020-02-01","2020-03-01","2020-04-01","2020-05-01","2020-06-01","2020-07-01","2020-08-01","2020-09-01","2020-10-01","2020-11-01","2020-12-01"]
[null,"6.1 Gerência e apoio administrativo"]
[null,"6.2 Serviço de coleta convencional e seletiva"]
[null,"6.3 Serviço de triagem/compostagem"]
[null,"6.4 Serviço de transbordo"]
[null,"6.5 Serviço de operação do aterro sanitário"]
[null,"Subtotal",null,null,{"$f":"SUM(E100:E104)","v":0},0,0,0,0,0,0,0,0,0,0,0,0,0,0]
[]
[null,"7 Demais despesas",null,null,"Informar outras despesas com a prestação do serviço, conforme indicadas nesta tabela"]
[{"$nulls":4},2018,2019,2020,"2020-01-01","2020-02-01","2020-03-01","2020-04-01","2020-05-01","2020-06-01","2020-07-01","2020-08-01","2020-09-01","2020-10-01","2020-11-01","2020-12-01"]
[null,"7.1 Despesas com a cobrança e arrecadação de taxas e tarifas"]
[null,"7.2 Despesas diversas "]
[null,"7.3 Despesas extraordinárias ou eventuais"]
[null,"7.4 Provisões de despesas contingentes — cíveis e trabalhistas"]
[]
["III","Algumas informações e parâmetros referenciais para cálculo estimativo dos custos de serviços/atividades de manejo de resíduos sólidos urbanos"]
[null,"A tabela abaixo apresenta informações e parâmetros extraídos do Sistema Nacional de Informações sobre Saneamento (SNIS) relativo ao ano de 2017, publicado em 2018 no site www.snis.gov.br, abrangendo 3.556 municípios brasileiros.\nPortanto, para eventual utilização dos valores de despesas apontados nesta tabela, deve-se atualizá-los com as informações do SNIS de ano mais recente e corrigidos para o ano corrente, utilizando o índice de reajuste adotado pelo município indicado na planilha/aba \"1 Identificação e Parâmetros\" — linha 13, colunas J e K."]
[null,"Faixa populacional do município (hab.)","% de municípios com cobrança do serviço","% Receita Anual Arrecadada/ Despesa total","Despesa anual média/hab atendido","Despesa média/Ton RDO+RPU","Despesa média anual/Trabalhador","Quantidade média de pessoal — próprio + terceirizado",{"$nulls":3},"Quant de veículos — coleta"]
[{"$nulls":7},"Total","Desvio-Padrão Médio","Coleta","Desvio-Padrão Médio","Média/município","Desvio-Padrão Médio"]
[null,"0 a 5.000",{"v":0.4764930114358323,"d":"47.6%"},{"v":0.22122647394401693,"d":"22.1%"},{"v":76.23823093938398,"d":"R$76.24"},{"v":257.2365410575755,"d":"R$257.24"},{"v":34354.123560311295,"d":"R$34,354.12"},{"v":5.917218543046357,"d":"6"},{"v":2.9209179019292244,"d":"3"},{"v":3.8493377483443707,"d":"4"},{"v":1.681911752121915,"d":"2"},2,1]
[null,"5.001 a 10.000",{"v":0.42724867724867727,"d":"42.7%"},{"v":0.37139280335283853,"d":"37.1%"},{"v":57.274011432769804,"d":"R$57.27"},{"v":190.06339737752145,"d":"R$190.06"},{"v":42351.07073368874,"d":"R$42,351.07"},8,4,5,2,2,1]
[null,"10.001 a 20.000",{"v":0.44348894348894347,"d":"44.3%"},{"v":0.4070993111362424,"d":"40.7%"},{"v":54.34957101942659,"d":"R$54.35"},{"v":174.3973695610659,"d":"R$174.40"},{"v":50127.70490627546,"d":"R$50,127.70"},13,6,9,4,3,2]
[null,"20.001 a 50.000",{"v":0.42313323572474376,"d":"42.3%"},{"v":0.4934846588103791,"d":"49.3%"},{"v":57.2826012697189,"d":"R$57.28"},{"v":168.58894990698664,"d":"R$168.59"},{"v":65581.61394645796,"d":"R$65,581.61"},23,12,17,9,5,2]
[null,"50.001 a 100.000",{"v":0.515625,"d":"51.6%"},{"v":0.6177072303503073,"d":"61.8%"},{"v":64.26209950667486,"d":"R$64.26"},{"v":194.38418757108315,"d":"R$194.38"},{"v":97837.90781330355,"d":"R$97,837.91"},40,16,29,12,9,4]
[null,"100.001 a 200.000",{"v":0.6097560975609756,"d":"61.0%"},{"v":0.6761313105534366,"d":"67.6%"},{"v":73.56737054885215,"d":"R$73.57"},{"v":235.74406674919163,"d":"R$235.74"},{"v":127348.6575142635,"d":"R$127,348.66"},77,28,55,21,14,5]
[null,"200,001 a 500.000",{"v":0.65625,"d":"65.6%"},{"v":0.6773789595647712,"d":"67.7%"},{"v":91.29535497222949,"d":"R$91.30"},{"v":293.65988211593054,"d":"R$293.66"},{"v":156054.3674866762,"d":"R$156,054.37"},174,86,123,58,27,12]
[null,"500.001 a 1000.000",{"v":0.7916666666666666,"d":"79.2%"},{"v":0.33469481500750975,"d":"33.5%"},{"v":94.65333239574306,"d":"R$94.65"},{"v":253.75185308935417,"d":"R$253.75"},{"v":153510.06051820077,"d":"R$153,510.06"},407,159,281,100,59,23]
[null,"acima de 1000.001 ",{"v":0.6470588235294118,"d":"64.7%"},{"v":0.9026798670735601,"d":"90.3%"},{"v":123.31286747588608,"d":"R$123.31"},{"v":317.7331307121589,"d":"R$317.73"},{"v":173594.18733896015,"d":"R$173,594.19"},1875,1389,1261,952,180,114]
[null,"Fonte: SNIS 2017",{"$nulls":3},"Valores a preços de 2017"]

{"sheet":"9 Dados_Exerc_Ferramenta","index":11,"n_rows":48,"n_cols":11,"rows_kept":48,"merged":[[0,5,0,8],[0,9,1,9],[12,5,12,8],[12,9,13,9],[13,0,14,0],[18,1,18,3]]}
["Município de Serra do Juda - MG",{"$nulls":4},"DESPESAS OPERACIONAIS DA COLETA CONVENCIONAL ",{"$nulls":3},"Reajuste estimado"]
["Gestor/Prestador: Secretaria de Serviços Urbanos",{"$nulls":4},"Itens de despesas",{"$f":"B4","v":2020},{"$f":"C4","v":2021},{"$f":"D4","v":2022}]
["Ano de implantação da Taxa/Tarifa de Manejo de Resíduos",null,null,2022,null,"Pessoal próprio (Remuneração + encargos)",{"$f":"5500*13+2*3800*13+3*2700*13","v":{"v":275600,"d":"275,600.00"}},{"$f":"G3*(1+B25+0.02)","v":{"v":296132.2,"d":"296,132.20"}},null,"INPC +",{"v":0.02,"d":"2%"}]
["Informações gerais do Município",{"$f":"C4-1","v":2020},{"$f":"D4-1","v":2021},{"$f":"D3","v":2022},null,"Pessoal contratado",{"v":0,"d":"0.00"},{"v":0,"d":"0.00"}]
["População total",{"v":10050,"d":"10,050"},{"$f":"B5*1.02","v":{"v":10251,"d":"10,251"}},{"$f":"C5*(1+D6)","v":{"v":10435.518,"d":"10,436"}},null,"Serviços de terceiros",{"v":50000,"d":"50,000.00"},{"$f":"G5*(1+B25)","v":{"v":52725,"d":"52,725.00"}},null,"INPC"]
["Taxa de crescimento da população",{"v":0.022,"d":"2.2%"},{"v":0.02,"d":"2.0%"},{"v":0.018,"d":"1.8%"},null,"Aluguel de imóvel",{"v":0,"d":"0.00"},{"v":0,"d":"0.00"}]
["Taxa de crescimento domicílos residenciais",{"v":0.025,"d":"2.5%"},{"v":0.022,"d":"2.2%"},{"v":0.02,"d":"2.0%"},null,"Aluguel de veículos e equipamentos",{"v":0,"d":"0.00"},{"v":0,"d":"0.00"}]
["Domicilios Totais - Urbanos e aglomerados rurais",{"v":3365,"d":"3,365"},{"v":3440,"d":"3,440"},{"v":3505,"d":"3,505"},null,"Combustível e lubrificantes",{"v":26500,"d":"26,500.00"},{"$f":"G8*(1+C26+0.1)","v":{"v":31561.5,"d":"31,561.50"}},null,"INPC+",{"v":0.04,"d":"4%"}]
["Domicílios/economias com abastecimento de água",{"$f":"SUM(B10:B13)","v":{"v":3296,"d":"3,296"}},{"$f":"SUM(C10:C13)","v":{"v":3370.3,"d":"3,370"}},{"$f":"SUM(D10:D13)","v":{"v":3437.686,"d":"3,438"}},null,"Manutenção de veículos",{"v":17500,"d":"17,500.00"},{"$f":"G9*(1+B26)","v":{"v":18291,"d":"18,291.00"}},null,"INPC"]
["Domicílios Residenciais",{"v":3150,"d":"3,150"},{"$f":"B10*(1+C7)","v":{"v":3219.3,"d":"3,219"}},{"$f":"C10*(1+D7)","v":{"v":3283.686,"d":"3,284"}},null,"Outras",{"v":12000,"d":"12,000.00"},{"v":15000,"d":"15,000.00"},null,"INPC"]
["Domicílios Comerciais",125,127,130,null,"TOTAL",{"$f":"SUM(G3:G10)","v":{"v":381600,"d":"381,600.00"}},{"$f":"SUM(H3:H10)","v":{"v":413709.7,"d":"413,709.70"}},{"$f":"SUM(I3:I10)","v":{"v":0,"d":"0.00"}}]
["Domicílios Industriais",3,3,3]
["Domicílios Públicos",18,21,21,null,"Despesas operacionais - Aterros Sanitário",{"$nulls":3},"Reajuste estimado"]
["Domicílios totais atendidos pela Coleta de RDO",{"v":0.98,"d":"98%"},{"v":0.98,"d":"98%"},{"v":0.99,"d":"99%"},null,"Itens de despesas",{"$f":"G2","v":2020},{"$f":"H2","v":2021},{"$f":"I2","v":2022}]
[null,{"$f":"B8*B14","v":{"v":3297.7,"d":"3,298"}},{"$f":"C8*C14","v":{"v":3371.2,"d":"3,371"}},{"$f":"D8*D14","v":{"v":3469.95,"d":"3,470"}},null,"Pessoal próprio (Remuneração + encargos)",{"$f":"5500*13+3800*13+3*2700*13","v":{"v":226200,"d":"226,200.00"}},{"$f":"G15*(1+B25+0.02)","v":{"v":243051.9,"d":"243,051.90"}},null,"INPC +",{"v":0.02,"d":"2%"}]
["Quantidade de Resíduos Coletada",{"$nulls":4},"Pessoal contratado ",{"v":0,"d":"0.00"},{"v":0,"d":"0.00"}]
["Coleta convencional (RDO+RPU) (ton)",{"$f":"B5*0.7*365/1000","v":{"v":2567.775,"d":"2,568"}},{"$f":"C5*0.7*365/1000","v":{"v":2619.1305,"d":"2,619"}},{"$f":"D5*0.7*365/1000","v":{"v":2666.274849,"d":"2,666"}},null,"Serviços de terceiros",{"v":0,"d":"0.00"},{"v":0,"d":"0.00"}]
["Coleta Seletiva (ton)",0,0,null,null,"Aluguel de imóvel",{"v":0,"d":"0.00"},{"v":0,"d":"0.00"}]
["Quantidade média de RDO gerado por hab","0,7 kg/hab/dia",{"$nulls":3},"Aluguel de veículos e equipamentos",{"v":0,"d":"0.00"},{"v":0,"d":"0.00"}]
[{"$nulls":5},"Combustível",{"v":21000,"d":"21,000.00"},{"$f":"G20*(1+C26+0.1)","v":{"v":25011,"d":"25,011.00"}},null,"INPC+",{"v":0.04,"d":"4%"}]
["Volume de água consumida (m³)",{"$f":"SUM(B10:B13)*16*12","v":{"v":632832,"d":"632,832"}},{"$f":"SUM(C10:C13)*16.5*12","v":{"v":667319.4,"d":"667,319"}},{"$f":"SUM(D10:D13)*16*12","v":{"v":660035.712,"d":"660,036"}},null,"Manutenção de veículos",{"v":16000,"d":"16,000.00"},{"$f":"G21*1.07","v":{"v":17120,"d":"17,120.00"}},null,"INPC"]
["Volume de água faturada (m³)",{"$f":"B9*5+B21","v":{"v":649312,"d":"649,312"}},{"$f":"C9*5+C21","v":{"v":684170.9,"d":"684,171"}},{"$f":"D9*5+D21","v":{"v":677224.1420000001,"d":"677,224"}},null,"Outras",{"v":15500,"d":"15,500.00"},{"v":14200,"d":"14,200.00"},null,"INPC"]
["Volume médio faturado por economia (m³/econ)",{"$f":"B22/B9/12","v":{"v":16.416666666666668,"d":"16.4"}},{"$f":"C22/C9/12","v":{"v":16.916666666666668,"d":"16.9"}},{"$f":"D22/D9/12","v":{"v":16.416666666666668,"d":"16.4"}},null,"TOTAL",{"$f":"SUM(G15:G22)","v":{"v":278700,"d":"278,700.00"}},{"$f":"SUM(H15:H22)","v":{"v":299382.9,"d":"299,382.90"}},{"$f":"SUM(I15:I22)","v":{"v":0,"d":"0.00"}}]
["Indicadores econômicos ",{"$f":"B4","v":2020},{"$f":"C4","v":2021},{"$f":"D4","v":2022}]
["INPC",{"v":0.0545,"d":"5.45%"},{"v":0.0925,"d":"9.25%"},{"v":0.0465,"d":"4.65%"},null,"INFORMAÇÕES REGULATÓRIAS"]
["IPCA",{"v":0.0452,"d":"4.52%"},{"v":0.091,"d":"9.10%"},{"v":0.0445,"d":"4.45%"},null,"Repasse do custo regulatório aos usuários",{"v":1,"d":"100%"}]
["SELIC (média do ano)",{"v":0.027,"d":"2.70%"},{"v":0.0925,"d":"9.25%"},{"v":0.1025,"d":"10.25%"},null,"Limites de apropriação ao custo do serviço em relação ao custo contábil "]
[{"$nulls":5},"Despesas indiretas da administração central",{"v":0.1,"d":"10%"}]
["INVESTIMENTOS",{"$nulls":4},"Despesas de depreciação/exaustão",{"v":1,"d":"100%"}]
["1. Implantação do Aterro Sanitário",{"$nulls":4},"Perdas de receitas - inadimplência",{"v":0.03,"d":"3.0%"}]
["Início de operação: Janeiro",{"$f":"B4","v":2020},{"$nulls":3},"Isenções e subsídios tributário/tarifário",{"v":0.025,"d":"2.5%"}]
["Vida útil total esperada ","20 anos",{"$nulls":3},"Critério de reajuste dos custos para o ano atual:","INPC - média do ano base e da previsão para o ano atual"]
["Investimentos iniciais até Dez/2020",{"$f":"SUM(B34:B39)","v":{"v":510500,"d":"R$ 510,500.00"}},"% Depreciação Exaustão",null,null,"Taxa de remuneração dos investimentos","IPCA +",{"v":0.02,"d":"2%"}]
["Aquisição da área (Terreno)",{"v":75000,"d":"R$ 75,000.00"},{"$f":"1/20","v":{"v":0.05,"d":"5.00%"}},{"$f":"B34*C34","v":{"v":3750,"d":"3,750.00"}},null,"Previsão de custo da cobrança junto com a conta de água = R$/conta-fatura/mês",{"v":3.5,"d":"R$3.50"}]
["Preparação e infraestruturas do Aterro (acesso,mov terra, cercamento, drenagem, etc.)",{"v":250000,"d":"R$ 250,000.00"},{"$f":"1/20","v":{"v":0.05,"d":"5.00%"}},{"v":12500,"d":"12,500.00"},null,{"$f":"(B34+B35)*(1-C35*1.5)","v":{"v":300625,"d":"R$300,625.00"}},{"$f":"F35-(B34+B35)*C35","v":{"v":284375,"d":"R$284,375.00"}}]
["Balança rodoviária (aquisição e instalação)",{"v":50000,"d":"R$ 50,000.00"},{"v":0.05,"d":"5.00%"},{"v":2500,"d":"2,500.00"},null,{"$f":"B36*(1-C36*1.5)","v":{"v":46250,"d":"R$46,250.00"}},{"$f":"F36-B36*C36","v":{"v":43750,"d":"R$43,750.00"}}]
["Edificações (Portaria, escritório,banheiro, etc.)",{"v":55000,"d":"R$ 55,000.00"},{"v":0.05,"d":"5.00%"},{"v":2750,"d":"2,750.00"},null,{"$f":"B37*(1-C37*1.5)","v":{"v":50875,"d":"R$50,875.00"}},{"$f":"F37-B37*C37","v":{"v":48125,"d":"R$48,125.00"}}]
["Outros gastos iniciais (licenças, cartórios, etc.)",{"v":15000,"d":"R$ 15,000.00"},{"v":0.05,"d":"5.00%"},{"v":750,"d":"750.00"},null,{"$f":"B38*(1-C38*1.5)","v":{"v":13875,"d":"R$13,875.00"}},{"v":13125,"d":"R$13,125.00"}]
["Implantação da 1ª Célula - tempo de uso = 2 anos",{"v":65500,"d":"R$ 65,500.00"},{"v":0.5,"d":"50.00%"},{"v":32750,"d":"32,750.00"},null,{"$f":"B39*0.25","v":{"v":16375,"d":"R$16,375.00"}},{"$f":"B41*0.75","v":{"v":56250,"d":"R$56,250.00"}}]
["TOTAL",{"$f":"SUM(B34:B39)","v":{"v":510500,"d":"510,500.00"}},null,{"$f":"SUM(D34:D39)","v":{"v":55000,"d":"55,000.00"}},null,{"$f":"SUM(F35:F39)","v":{"v":428000,"d":"R$428,000.00"}},{"$f":"SUM(G35:G39)","v":{"v":445625,"d":"R$445,625.00"}}]
["Implantação 2ª Célula em  Dez/2021 - tempo de uso 2 anos",{"v":75000,"d":"R$ 75,000.00"},{"v":0.5,"d":"50.00%"},{"$f":"B41*C41","v":{"v":37500,"d":"37,500.00"}}]
[]
["2 Veículos e equipamentos - Coleta e Aterro ",null,"% Depreciação",null,2020,2021,2022]
["1 Caminhão coleta compactador - Aquisição Junho/2015",{"v":250000,"d":"R$ 250,000.00"},{"v":0.1,"d":"10.00%"},{"$f":"B44*C44","v":{"v":25000,"d":"25,000.00"}},{"$f":"B44*(1-0.55)","v":{"v":112499.99999999999,"d":"R$112,500.00"}},{"$f":"E44-B44*C44/2","v":{"v":99999.99999999999,"d":"R$100,000.00"}},{"$f":"F44-B44*C44","v":{"v":74999.99999999999,"d":"R$75,000.00"}}]
["1 Trator de esteira - Aquisição Janeiro/2017. \nObservação: Equipamento compartilhado - 60% do tempo no Aterro e 40% em outras atividades da Prefeitura.",{"v":310000,"d":"R$ 310,000.00"},{"v":0.1,"d":"10.00%"},{"$f":"B45*C45*60%","v":{"v":18600,"d":"18,600.00"}},{"$f":"B45*(1-0.4)*0.6","v":{"v":111600,"d":"R$111,600.00"}},{"$f":"E45-B45*C45/2*0.6","v":{"v":102300,"d":"R$102,300.00"}},{"$f":"F45-B45*C45*0.6","v":{"v":83700,"d":"R$83,700.00"}}]
["1 Caminhão basculante - Aquisição Janeiro/2018\nObservação: Equipamento compartilhado - 40% do tempo no Aterro e 60% em outras atividades da Prefeitura.",{"v":170000,"d":"R$ 170,000.00"},{"v":0.1,"d":"10.00%"},{"$f":"B46*C46*40%","v":{"v":6800,"d":"6,800.00"}},{"$f":"B46*(1-0.3)*0.4","v":{"v":47600,"d":"R$47,600.00"}},{"$f":"E46-B46*C46/2*0.4","v":{"v":44200,"d":"R$44,200.00"}},{"$f":"F46-B46*C46*0.4","v":{"v":37400,"d":"R$37,400.00"}}]
["TOTAL",{"$f":"SUM(B44:B46)","v":{"v":730000,"d":"730,000.00"}},null,{"$f":"SUM(D44:D46)","v":{"v":50400,"d":"50,400.00"}},{"$f":"SUM(E44:E46)","v":{"v":271700,"d":"271,700.00"}},{"v":246500,"d":"246,500.00"},{"v":196100,"d":"196,100.00"}]
[{"$nulls":5},{"$f":"F40+F47","v":{"v":674500,"d":"R$674,500.00"}},{"$f":"G40+G47","v":{"v":641725,"d":"R$641,725.00"}}]

{"sheet":"Planilha1","index":12,"n_rows":6,"n_cols":3,"rows_kept":6}
[]
[]
[null,null,"1. Quantidade de RSU coletada (ton)"]
[null,null,"2. Quantidade de domicílios com coleta de RSU"]
[null,null,"3. Volume total de água faturada (m³)"]
[null,null,"4. Área total construída (m²)"]